Cogmind - Beta 16 @@@ ROGUE MODE // 2025.10.25 @ 05:48:13 Player: Darcyisverycute Result: Heading to fleet! Performance ------------- Evolutions (9) 4500 Regions Visited (34) 6800 Robots Destroyed (467) 2335 Value Destroyed (24884) 24884 Prototype IDs (112) 2240 Alien Tech Used (18) 3600 Bonus (23166) 23166 TOTAL SCORE: 67525 Bonus ------- Triggered High Security 500 High Alert Combat Kills 7160 Follower Combat Kills 5184 Entered Garrisons 400 Used RIF Installer 1000 Network Hubs Disabled 800 Met Data Miner 300 Met Zhirov 300 Met R17 at Cetus 500 Found Hidden Lab 3000 Used Core Reset Matrix 3000 Met R17 at Research 2000 Met Architect 300 Win 3000 Friendly Fire -4278 Cogmind --------- Core Integrity 80/1600 Matter 162/300 Energy 1159/1170 System Corruption 0% +Membrane Temperature Cool (6) +ITN Movement Walking (112) Location To Fleet Rendezvous Parts ------- > --- POWER (3) -------- Light Antimatter Reactor > --- PROPULSION (8) --- Assembled Alloy Leg Assembled Alloy Leg Centrium Leg Centrium Leg Centrium Leg Experimental Biometal Leg > --- UTILITY (11) ----- Advanced Power Amplifier High-capacity Storage Unit Assembled Biocell Array Spectral Analyzer Assembled Combat Suite Centrium Light Armor Plating Assembled Alloy Armor Advanced Force Field > --- WEAPON (4) ------- Sigix Sheargun Enhanced Nova Cannon > --- INVENTORY (20) --- Matter Drive Myomer Leg Myomer Leg Coolant Network Heavy Regenerative Plating Improved Shock Absorption System Terrabomb Microwarp Drive Sigix Broadsword Peak State ------------ > --- POWER ------------ Assembled Flux Generator Light Quantum Reactor > --- PROPULSION ------- Myomer Leg Biometal Leg Assembled Alloy Leg Assembled Alloy Leg Centrium Leg Centrium Leg Centrium Leg Experimental Biometal Leg > --- UTILITY ---------- High-capacity Storage Unit Assembled Biocell Array Spectral Analyzer Assembled Combat Suite Assembled Alloy Armor Heavy Regenerative Plating Advanced Force Field Microwarp Drive > --- WEAPON ----------- Assembled Focal Cannon Assembled Focal Cannon Sigix Broadsword > --- INVENTORY -------- Light Antimatter Reactor Matter Drive Myomer Leg Myomer Leg Advanced Power Amplifier Coolant Network Energy Well Energy Filter Improved Reaction Control System Centrium Light Armor Plating Improved Shock Absorption System Advanced EM Shield High-powered Transdimensional Reconstructor Terrabomb Sigix Sheargun Sigix Sheargun Enhanced Nova Cannon Potential Cannon [Rating: 262] Favorites ----------- Power Light Quantum Reactor Engine Light Ion Engine Power Core Micro Nuclear Core Reactor Light Quantum Reactor Propulsion Light Treads Treads Light Treads Leg Myomer Leg Wheel Compact Wheel Hover Unit Cooled Gravmag System Flight Unit Improved Flight Unit Utility Large Storage Unit Device Advanced Cooling System Storage Large Storage Unit Processor Improved Targeting Computer Hackware Hacking Suite Protection Light Regenerative Plating Artifact Microwarp Drive Weapon Heavy Assault Rifle Energy Gun Cooled Plasma Rifle Energy Cannon Enhanced Nova Cannon Ballistic Gun Heavy Assault Rifle Ballistic Cannon Enhanced Hardcell Cannon Launcher Rocket Launcher Special Weapon Remote Datajack Impact Weapon Shock Maul Slashing Weapon Sigix Broadsword Piercing Weapon Plasma Lance Special Melee Weapon Improved Datajack Build | -11 -10 -9 -9 -8 -8 -7 -7 -7 -6 -6 -6 -6 -6 -6 -5 -5 -5 -5 -5 -4 -4 -4 -4 -4 -4 -3 -3 -3 -2 -2 -2 -1 -1 -1 ------- Run | Yrd Mat Mat Min Mat Gar Fac Gar Fac Fac Was Fac Low Low Dat Pro Fac Upp Upp Zhi Pro Fac Ext Cet Arc Hub Res Arm Lab Res Qua Sec Acc Com Ac0 Slots Evolved 18 | . . 2 . 2 . 2 . . 2 . . . . . . 2 . . . . 2 . . . . 2 . . 2 . . 2 . . Power 1 | . . . . . . . . . . . . . . . . . . . . . . . . . . 1 . . . . . . . . Propulsion 6 | . . 1 . . . 1 . . 1 . . . . . . 1 . . . . . . . . . 1 . . 1 . . . . . Utility 9 | . . 1 . 2 . 1 . . 1 . . . . . . . . . . . 2 . . . . . . . 1 . . 1 . . Weapon 2 | . . . . . . . . . . . . . . . . 1 . . . . . . . . . . . . . . . 1 . . Parts Attached 517 | 6 6 30 . 7 29 39 14 40 8 2 19 9 1 . . 14 . 1 8 2 8 13 5 6 19 51 57 2 16 8 33 35 26 3 Power 56 | 1 1 3 . . 3 1 1 3 . . 4 2 . . . 2 . . 1 1 1 2 1 . 1 5 5 . 2 3 6 5 2 . Engine 17 | 1 1 3 . . 1 . . 2 . . 4 2 . . . 1 . . . . . . . . . . . . . 1 . 1 . . Core 8 | . . . . . 2 1 1 1 . . . . . . . 1 . . . . . 1 . . . . . . 1 . . . . . Reactor 31 | . . . . . . . . . . . . . . . . . . . 1 1 1 1 1 . 1 5 5 . 1 2 6 4 2 . Propulsion 134 | 2 . 10 . 2 10 6 4 11 2 1 6 . . . . 4 . . 3 . 1 2 . 3 3 11 10 . 5 . 11 18 8 1 Treads 35 | 2 . 9 . 2 7 . 4 . . . . . . . . . . . . . . . . 3 . 2 . . . . . 6 . . Leg 24 | . . . . . . . . . . . . . . . . . . . . . . . . . 1 5 1 . . . . 8 8 1 Wheel 4 | . . . . . . . . . . . . . . . . . . . . . . . . . 2 2 . . . . . . . . Hover 55 | . . . . . . . . 6 2 1 6 . . . . 4 . . 3 . 1 2 . . . 2 9 . 5 . 11 3 . . Flight 16 | . . 1 . . 3 6 . 5 . . . . . . . . . . . . . . . . . . . . . . . 1 . . Utility 225 | 1 4 6 . 4 8 24 7 23 5 . 7 5 1 . . 6 . 1 4 1 4 7 1 3 14 21 22 2 6 4 13 7 12 2 Device 93 | . 2 . . . 2 5 1 7 3 . 5 1 1 . . 1 . 1 3 1 2 5 . 2 10 5 15 . 3 3 6 2 6 1 Storage 14 | 1 2 1 . . . 2 . . . . . . . . . . . . . . . . . . 2 1 . . 1 . 1 1 2 . Processor 34 | . . 1 . 1 . 4 . 1 . . 2 3 . . . 2 . . 1 . . . . . 2 4 3 . . 1 4 3 2 . Hackware 32 | . . . . . . 10 3 9 1 . . . . . . 2 . . . . 2 . . . . 1 2 1 1 . . . . . Protection 51 | . . 4 . 3 6 3 3 6 1 . . 1 . . . 1 . . . . . 2 1 1 . 10 2 1 1 . 1 1 2 1 Artifact 1 | . . . . . . . . . . . . . . . . . . . . . . . . . . . . . . . 1 . . . Weapon 102 | 2 1 11 . 1 8 8 2 3 1 1 2 2 . . . 2 . . . . 2 2 3 . 1 14 20 . 3 1 3 5 4 . Energy Gun 20 | 1 . 2 . . . . 1 . . . . . . . . . . . . . . 2 1 . . 4 4 . . . 1 4 . . Energy Cannon 15 | . . . . . . . . . . . . . . . . . . . . . 2 . . . . 3 4 . 2 . 1 1 2 . Ballistic Gun 31 | 1 . 7 . 1 5 1 1 . . . 1 2 . . . 1 . . . . . . 2 . . 5 4 . . . . . . . Ballistic Cannon 3 | . . 1 . . . . . . . . . . . . . . . . . . . . . . . 1 . . . . . . 1 . Launcher 9 | . . 1 . . 1 2 . . . . . . . . . . . . . . . . . . 1 1 1 . . . 1 . 1 . Special Weapon 5 | . . . . . 1 1 . 1 . . . . . . . 1 . . . . . . . . . . . . 1 . . . . . Impact Weapon 2 | . . . . . . 1 . . 1 . . . . . . . . . . . . . . . . . . . . . . . . . Slashing Weapon 8 | . . . . . 1 . . 1 . . 1 . . . . . . . . . . . . . . . 4 . . 1 . . . . Piercing Weapon 4 | . . . . . . . . . . 1 . . . . . . . . . . . . . . . . 3 . . . . . . . Special Melee Weapon 5 | . 1 . . . . 3 . 1 . . . . . . . . . . . . . . . . . . . . . . . . . . Unidentified Prototypes 74 | . . 3 . . . 4 1 5 3 1 . . . . . 1 . . 2 . 1 . 3 1 5 7 16 3 3 2 8 . 2 3 Corrupted Parts 1 | . . . . . . . . . . . . . . . . . . . . . . 1 . . . . . . . . . . . . System Corruption 6 | . . . . . . . . . . . . . . . . . . . . . . 6 . . . . . . . . . . . . Parts Lost 146 | . 1 8 . . 16 10 4 3 9 . 10 . . . . 3 . 3 . . 1 5 1 . 6 20 8 . 2 1 14 8 2 11 Power 21 | . 1 1 . . 1 2 . . 2 . 1 . . . . . . . . . . 1 . . 1 2 1 . . . 3 3 . 2 Propulsion 47 | . . 3 . . 6 2 2 1 2 . 6 . . . . 2 . 2 . . . 1 . . . 2 3 . 2 1 4 4 2 2 Utility 54 | . . 2 . . 6 5 1 1 4 . 2 . . . . 1 . . . . . 2 1 . 4 10 4 . . . 7 1 . 3 Weapon 24 | . . 2 . . 3 1 1 1 1 . 1 . . . . . . 1 . . 1 1 . . 1 6 . . . . . . . 4 Highest Loss Streak 11 | . 1 3 . . 7 3 2 2 9 . 5 . . . . 3 . 3 . . 1 4 1 . 4 9 3 . 1 1 3 2 2 11 To Critical Strikes 4 | . . . . . . . . . . . . . . . . . . 1 . . . . . . . . . . . . 1 . . 2 Average Backups 12 | . 7 22 25 24 22 8 9 9 9 4 6 5 5 5 5 4 5 5 4 5 4 4 4 3 10 13 13 11 13 13 11 11 14 15 Power . | . . 1 . . . . . . . . . . . . . . . . . . . . . . . 1 . . . . . . . . Propulsion 2 | . 2 5 8 7 5 . 2 1 3 2 2 . . . . . . . . . . . . . 2 4 2 . . . . . . 2 Utility 4 | . 2 6 7 8 9 4 2 4 3 . . 1 2 2 2 2 3 3 3 3 1 2 2 2 5 4 4 6 6 7 6 2 5 6 Weapon 2 | . 1 6 8 7 4 1 2 1 1 1 1 3 3 3 3 1 2 1 . . . . . . 1 3 5 3 3 1 1 3 4 3 Tool/Special . | . . . . . . . . . . . . . . . . . . . . . . . . . . . . . . . . . . . Unused Backups 48 | . 1 5 . 1 . 5 1 1 1 . 1 2 . . . 4 . . . . . . 7 1 . . 4 3 1 1 2 . 3 4 Power 5 | . . 1 . . . 1 . . . . 1 1 . . . . . . . . . . 1 . . . . . . . . . . . Propulsion 11 | . . 2 . . . . . . 1 . . . . . . 1 . . . . . . 4 . . . 1 1 . . 1 . . . Utility 17 | . 1 . . . . 2 1 1 . . . . . . . 3 . . . . . . . 1 . . 1 1 1 . 1 . 2 2 Weapon 9 | . . 2 . 1 . 1 . . . . . . . . . . . . . . . . 2 . . . 2 1 . . . . . . Tool/Special 6 | . . . . . . 1 . . . . . 1 . . . . . . . . . . . . . . . . . 1 . . 1 2 Average Slot Usage (%) 88 | . 99 98 100 98 93 96 92 96 97 84 90 92 93 93 93 96 100 85 94 100 96 85 82 72 72 81 91 92 89 88 78 74 83 79 Engine 3 | . 14 10 11 9 3 . . 4 5 . 5 6 6 6 6 1 5 5 2 . . . . . . . . . . 1 . . . . Core 1 | . . . . . 4 6 7 2 . . . . . . . 4 . . . . . . . . . . . . 1 1 . . . . Reactor 3 | . . . . . . . . . . . . . . . . . . . 2 5 5 4 5 5 5 8 8 9 8 6 9 6 7 6 Treads 10 | . 28 32 33 27 25 . 20 . . . . . . . . . . . . . . . . 14 14 7 . . . . . 10 5 . Leg 2 | . . . . . . . . . . . . . . . . . . . . . . . . . . 6 . . . . . 7 22 29 Hover 10 | . . . . . . . . 5 32 32 28 26 26 26 26 31 35 24 29 35 31 27 31 . . 3 27 32 31 31 28 8 . . Flight 3 | . . . . . . 29 5 24 . . . . . . . . . . . . . . . . . . . . . . . . . . Device 11 | . 1 10 . 3 1 5 5 7 16 6 14 20 20 20 20 10 11 11 10 17 17 24 21 15 21 16 16 11 15 16 13 7 13 9 Storage 6 | . 25 11 11 9 9 5 7 7 6 6 2 . . . . . . . . . . . . . 3 5 4 4 5 5 4 3 4 7 Processor 8 | . . 5 11 14 18 10 7 6 5 . 7 19 20 20 20 12 11 11 10 5 2 . . . . 8 12 9 8 10 11 11 11 3 Hackware 3 | . . . . . . 18 9 15 10 6 2 . . . . 7 11 11 11 11 18 7 . . . . 3 5 3 4 . . . . Protection 6 | . . 4 11 16 12 1 12 6 4 20 15 6 6 6 6 7 5 5 5 5 5 5 11 19 12 6 2 3 2 . 3 2 2 7 Energy Gun 2 | . 12 . . . . . 1 . . . . . . . . . . . . . . 3 3 5 5 1 1 13 9 4 . 2 . . Energy Cannon 1 | . . . . . . . . . . . . . . . . . . . . . . 1 1 4 1 2 3 . 1 . . 1 4 6 Ballistic Gun 6 | . 14 19 11 10 12 . 3 . . . 3 11 10 6 6 12 5 11 11 11 9 3 3 5 5 4 4 . . . . . . . Slashing Weapon 1 | . . . . . 2 6 5 6 4 . 1 . . . . . . . . . . . . . . . 1 . . 1 3 2 3 2 Peak Build Rating 262 | 6 9 18 17 26 35 45 47 55 63 61 73 61 62 62 62 88 87 84 107 107 124 125 128 147 151 172 171 167 194 198 218 221 257 262 Average Rating 101 | 4 7 15 17 23 28 39 39 47 59 59 61 58 60 62 62 77 87 70 90 106 119 119 116 142 140 148 147 156 178 182 194 205 225 234 On Entrance 91 | . 6 9 17 17 26 28 40 36 52 48 61 55 59 62 62 62 87 87 74 107 105 124 115 128 147 122 125 159 166 183 192 168 221 257 Avg Prop Armor Cover (%) 4 | . . . . . 1 . . 9 . 4 2 . . . . 8 5 . . . . 7 . . 16 6 2 . 1 2 1 2 4 1 Naked Turns . | . . . . . . . . . . . . . . . . . . . . . . . . . . . . . . . . . . . Heaviest Build 185 | 11 66 95 95 116 115 94 39 33 34 29 37 35 35 32 32 40 28 33 39 39 53 56 76 83 81 112 95 79 107 91 125 116 185 185 Greatest Support 240 | 40 40 60 60 60 80 22 80 32 61 42 50 39 35 35 35 63 63 46 64 64 69 73 73 240 240 160 110 79 106 92 112 178 228 201 Greatest Overweight (x) 5 | . 1 4 1 1 5 4 2 4 . 1 1 . . . . 1 . . . . . 1 1 1 3 4 1 . 1 1 1 1 1 . Average Overweight (x) . | . . . 1 1 1 . . . . . . . . . . . . . . . . . . . . . . . . . . . . . Largest Inventory Capacity 25 | 8 20 25 25 25 25 25 10 10 10 10 10 5 5 5 5 5 5 5 5 5 5 5 5 5 15 15 15 15 15 15 20 15 20 20 Average Capacity 14 | 7 19 23 25 25 25 9 10 10 10 10 6 5 5 5 5 5 5 5 5 5 5 5 5 5 11 15 15 15 15 15 15 15 17 20 Most Carried 25 | 2 13 25 25 25 25 25 10 10 10 5 10 5 5 5 5 5 5 5 5 5 5 5 5 5 15 15 15 15 15 15 15 15 20 20 Average Carried 13 | . 7 22 25 24 23 8 9 9 9 4 5 4 5 5 5 4 5 4 4 4 4 4 4 3 10 14 14 11 14 14 14 14 17 18 Final Capacity 25 | 8 20 25 25 25 25 10 10 10 10 10 5 5 5 5 5 5 5 5 5 5 5 5 5 5 15 15 15 15 15 15 15 15 20 20 Final Carried 25 | 1 13 25 25 25 25 9 10 10 5 4 5 5 5 5 5 5 5 5 5 5 5 5 5 5 14 15 14 15 15 15 15 15 20 14 Class Distribution -------------------- 24% | Scavenger-Mutant 16% | Mutant 14% | Alien-Gladiator 10% | Scavenger-Tank 6% | Commander-Mutant 3% | Hacker-Sprinter 3% | Scout Dominant Class ---------------- Mutant | -10/Materials Scavenger-Mutant | -9/Materials Scavenger-Mutant | -9/Mines Scavenger-Mutant | -8/Materials Scavenger-Mutant | -8/Garrison Hacker-Sprinter | -7/Factory Scavenger-Mutant | -7/Garrison Hacker-Sprinter | -7/Factory Hacker-Scout | -6/Factory Mutant | -6/Waste Mutant | -6/Factory Scout | -6/Lower Caves Mutant | -6/Lower Caves Mutant | -6/Data Miner Mutant | -5/Proximity Caves Mutant | -5/Factory Scavenger-Mutant | -5/Upper Caves Trapper-Skirmisher | -5/Upper Caves Scavenger-Mutant | -5/Zhirov Scavenger-Mutant | -4/Proximity Caves Hacker-Mutant | -4/Factory Commander-Mutant | -4/Extension Scavenger-Tank | -4/Cetus Scavenger-Tank | -4/Archives Scavenger-Mutant | -4/Hub_04(d) Scavenger-Tank | -3/Research Commander-Mutant | -3/Armory Scavenger-Sprinter | -3/Lab Scavenger-Sprinter | -2/Research Scout | -2/Quarantine Alien-Gladiator | -2/Section 7 Alien-Gladiator | -1/Access Alien-Gladiator | -1/Command Alien-Mutant | -1/Access_0 Resources | -11 -10 -9 -9 -8 -8 -7 -7 -7 -6 -6 -6 -6 -6 -6 -5 -5 -5 -5 -5 -4 -4 -4 -4 -4 -4 -3 -3 -3 -2 -2 -2 -1 -1 -1 ----------- Run | Yrd Mat Mat Min Mat Gar Fac Gar Fac Fac Was Fac Low Low Dat Pro Fac Upp Upp Zhi Pro Fac Ext Cet Arc Hub Res Arm Lab Res Qua Sec Acc Com Ac0 Matter Collected 16566 | 151 471 1322 . 106 1557 741 718 1086 154 . 268 360 50 . . 414 170 197 99 45 202 421 96 113 485 1982 1982 . 522 216 1112 654 866 6 Remotely . | . . . . . . . . . . . . . . . . . . . . . . . . . . . . . . . . . . . Salvage Created 24924 | 28 663 1743 . 131 1219 1033 624 787 154 . 271 274 197 . 110 682 61 113 105 15 233 803 144 492 1524 3205 2535 . 1926 602 1789 2195 1213 53 Parts 1117 | 1 32 115 . 12 66 55 29 51 11 . 19 16 4 . 1 56 . 4 3 2 4 24 4 26 68 121 118 . 48 24 77 81 45 . Haulers Intercepted 28 | . 1 5 . 1 . 5 . 3 1 . 1 . . . . 1 . . . . . . . . 1 3 . . 4 . 1 1 . . Recyclers Shooed 12 | . 1 3 . . . 1 . 2 . . . . . . . 2 . . . . 1 1 . . . . . . 1 . . . . . Parts Field Recycled . | . . . . . . . . . . . . . . . . . . . . . . . . . . . . . . . . . . . Retrieved Matter . | . . . . . . . . . . . . . . . . . . . . . . . . . . . . . . . . . . . Parts Self-Destructed 20 | . . . . . . . . . . . . 13 3 . . . . 2 . 2 . . . . . . . . . . . . . . Prevented . | . . . . . . . . . . . . . . . . . . . . . . . . . . . . . . . . . . . Parts Restored . | . . . . . . . . . . . . . . . . . . . . . . . . . . . . . . . . . . . Kills | -11 -10 -9 -9 -8 -8 -7 -7 -7 -6 -6 -6 -6 -6 -6 -5 -5 -5 -5 -5 -4 -4 -4 -4 -4 -4 -3 -3 -3 -2 -2 -2 -1 -1 -1 ------- Run | Yrd Mat Mat Min Mat Gar Fac Gar Fac Fac Was Fac Low Low Dat Pro Fac Upp Upp Zhi Pro Fac Ext Cet Arc Hub Res Arm Lab Res Qua Sec Acc Com Ac0 Combat Hostiles Destroyed 345 | . 12 37 . 5 27 16 14 11 1 . 2 4 . . . 6 . . . 1 1 7 2 2 17 41 32 . 23 14 19 32 17 2 Melee 69 | . . . . . . 8 7 6 . . 1 . . . . . . . . . 1 . . . . . . . . 2 19 22 3 . Guns 139 | . 12 31 . 1 15 . 7 . . . . 4 . . . 6 . . . 1 . 4 2 2 14 16 17 . 7 . . . . . Cannons 51 | . . 6 . . . . . . . . . . . . . . . . . . . . . . 1 10 8 . 4 1 . 5 14 2 AOE 61 | . . . . 4 12 7 . 5 . . 1 . . . . . . . . . . 2 . . . 9 . . 7 9 . 5 . . Classes Destroyed 29 | 1 6 3 . . 4 2 . 1 . . . . . . . . . 1 . 1 1 . . . 1 3 . . 1 . . 1 3 . Worker 21 | . 2 3 . . . 3 . 2 . . 2 . . . . 3 . . . . 1 . . . 2 1 . . 1 . . . 1 . Builder 9 | . . . . . . 2 . . 1 . 1 . . . . 4 . . . . . . . . . . . . . . . 1 . . Tunneler 8 | 1 . . . . . 1 . 2 1 . 2 . . . . . . . . . . . . . 1 . . . . . . . . . Hauler 28 | . 1 5 . 1 . 5 . 3 1 . 1 . . . . 1 . . . . . . . . 1 3 . . 4 . 1 1 . . Recycler 14 | . 2 4 . . . . . 2 . . . . . . . . . . . . 1 2 . . . 1 . . . 1 . 1 . . Minesweeper 1 | . . . . . . . . . . . . . . . . . . 1 . . . . . . . . . . . . . . . . Mechanic 2 | . . . . . . . . 1 . . . . . . . . . . . . . . . . . . . . 1 . . . . . Operator 18 | . 1 2 . . . 1 . 2 . . 1 . . . . . . . . . . . . 9 1 . 1 . . . . . . . Drone 2 | . . . . . . . . . . . . . . . . . . . . 1 . . . . . 1 . . . . . . . . Watcher 14 | . . 1 . . . 1 . . . . . . . . . . . . . . . . 1 . . 1 3 . 1 . 4 1 1 . Swarmer 57 | . 3 16 . 4 . 4 4 4 . . 1 . . . . . . . . . . . . . . 8 5 . . 4 . 3 1 . Cutter 2 | . . . . . 2 . . . . . . . . . . . . . . . . . . . . . . . . . . . . . Saboteur 1 | . . . . . . . . . . . . . . . . . . . . . . . . . . . . . . . . 1 . . Grunt 114 | . 9 10 . . 14 7 5 3 . . . 3 . . . 1 . . . . . 3 . . 1 12 9 . 13 . 4 15 5 . Brawler 10 | . . 1 . . 2 . 2 . . . . 1 . . . . . . . . . . . . . . . . . . 1 . 3 . Duelist 1 | . . . . . . . . . . . . . . . . . . . . . . . . . . . . . . . . . 1 . Protector 2 | . . . . . . . . . . . . . . . . . . . . . . . . . 2 . . . . . . . . . Sentry 48 | . . 10 . 1 6 2 2 2 1 . 1 . . . . 1 . . . . . 3 . 2 2 2 5 . 2 . 4 1 1 . Demolisher 6 | . . . . . . . . . . . . . . . . . . . . . 1 . . . . 4 1 . . . . . . . Specialist 3 | . . . . . 1 . . . . . . . . . . . . . . . . . . . . . 2 . . . . . . . Hunter 27 | . . . . . 1 1 . 1 . . . . . . . 2 . . . . . . . . 1 4 6 . . 5 4 2 . . Programmer 47 | . . . . . . 3 1 1 . . . . . . . 2 . . . . . . . . 4 1 4 . 7 5 5 10 4 . Heavy 1 | . . . . . . . . . . . . . . . . . . . . . . . . . . . . . 1 . . . . . Behemoth 2 | . . . . . 1 . . . . . . . . . . . . . . . . . . . 1 . . . . . . . . . Cetus Guard 2 | . . . . . . . . . . . . . . . . . . . . . . . 2 . . . . . . . . . . . S7 Guard 1 | . . . . . . . . . . . . . . . . . . . . . . . . . . . . . . . 1 . . . Enhanced Grunt 2 | . . . . . . . . . . . . . . . . . . . . . . . . . . . . . . . . . . 2 Lightning 6 | . . . . . . . . . . . . . . . . . . . . . . . . . 6 . . . . . . . . . Striker 10 | . . . . . . . . . . . . . . . . . . . . . . . . . . 9 . . . . . . 1 . Executioner 2 | . . . . . . . . . . . . . . . . . . . . . . . . . . 1 . . . . . . 1 . Packrat 1 | . . . . . . . . . . . . . . . . . . 1 . . . . . . . . . . . . . . . . Assembled 3 | . . . . . . . . . . . . . . . . . . . . . . . . . . . . . . . . . 3 . Golem 2 | . . . . . . . . . . . . . . . . . . . . . . . . . . . . . . . . . 2 . Guerrilla 2 | . . . . . . . . . . . . . . . . . . . . . . 1 . . 1 . . . . . . . . . Infiltrator 1 | . . . . . . . 1 . . . . . . . . . . . . . . . . . . . . . . . . . . . Revision 3 | . . . . . . . . . . . . . . . . . . . . . . . . . . 3 . . . . . . . . Best Kill Streak 12 | 1 3 5 . 4 7 4 3 3 1 . 3 2 . . . 12 . 1 . 1 2 4 1 5 3 7 6 . 9 7 5 10 4 2 Combat Bots Only 7 | . 3 5 . 4 7 4 3 2 1 . 1 2 . . . 3 . . . 1 1 3 1 1 2 6 6 . 7 7 5 6 4 2 Max Kills in Single Turn 4 | 1 2 2 . 4 4 3 1 1 1 . 1 1 . . . 2 . 1 . 1 1 3 1 1 1 4 2 . 4 3 1 3 1 1 Gunslinging 1 | . . . . . . . . . . . . . . . . . . . . . . . . . . 1 . . . . . . . . Exploded 4 | . . . . 4 4 3 . 1 . . 1 . . . . . . . . . . 2 . . . 4 . . 2 3 . 1 . . Melee 1 | . . . . . . 1 1 1 . . 1 . . . . . . . . . 1 . . . . . . . . 1 1 1 1 . Uniques/NPCs Destroyed 1 | . . . . . . . . . . . . . . . . . . . . . . 1 . . . . . . . . . . . . A7 (-4/Extension) Combat | -11 -10 -9 -9 -8 -8 -7 -7 -7 -6 -6 -6 -6 -6 -6 -5 -5 -5 -5 -5 -4 -4 -4 -4 -4 -4 -3 -3 -3 -2 -2 -2 -1 -1 -1 -------- Run | Yrd Mat Mat Min Mat Gar Fac Gar Fac Fac Was Fac Low Low Dat Pro Fac Upp Upp Zhi Pro Fac Ext Cet Arc Hub Res Arm Lab Res Qua Sec Acc Com Ac0 Hostile Shots Fired 3309 | . 79 159 . 12 229 131 79 71 58 . 95 10 . . . 52 . 45 . . 8 84 15 4 166 395 173 . 86 162 358 355 109 374 Missed 1125 | . 21 34 . 6 61 58 16 35 11 . 21 6 . . . 19 . 12 . . 3 29 8 2 28 141 68 . 41 85 150 94 40 136 Hits 2184 | . 58 125 . 6 168 73 63 36 47 . 74 4 . . . 33 . 33 . . 5 55 7 2 138 254 105 . 45 77 208 261 69 238 Melee 116 | . . 4 . . 5 . 4 . . . . . . . . . . . . . . . . . . 43 . . . . 11 1 4 44 Projectile 2068 | . 58 121 . 6 163 73 59 36 47 . 74 4 . . . 33 . 33 . . 5 55 7 2 138 211 105 . 45 77 197 260 65 194 AOE 23 | . . . . . . . . . . . . . . . . . . . . . . 6 . . . 13 3 . . . . . . 1 Critical Strikes 139 | . . 3 . 1 12 3 6 . 6 . 3 . . . . . . 1 . . . 7 1 . 20 13 6 . 3 3 12 14 5 20 Actively Blocked 1 | . . . . . . 1 . . . . . . . . . . . . . . . . . . . . . . . . . . . . Part Disruptions 6 | . . . . . . . . . . . . . . . . . . . . . . . . . 1 . . . . . 1 2 . 2 Damage Taken 46134 | . 608 1783 32 138 3348 959 892 741 745 . 1094 73 . . . 642 . 570 . . 110 1529 235 86 4434 6770 2048 . 1064 1369 5083 4451 1508 5822 Core 5704 | . 117 204 . . 346 298 171 168 81 . 157 37 . . . 116 . 102 . . 24 160 . 29 153 519 158 . 146 120 758 213 122 1505 Absorbed by Shields 5143 | . . . . . 216 15 . . . . . . . . . . . . . . . 253 . . . 1120 . . . . . 1262 776 1501 Reduced by Siege Mode 573 | . . . . . . . . . . . . . . . . . . . . . . . . . 387 186 . . . . . . . . Redirected to Shielding 323 | . . 20 . . 33 28 47 92 6 . 72 . . . . 14 . . . . . . . . . . . . . . . 11 . . Ignored by Resistances 3847 | . . . . 15 403 . 27 . . . . . . . . . . . . . . . . . 11 294 441 . 179 332 272 548 31 1294 Regen/Repaired (Parts) 8573 | . . 227 . 44 . 18 . 136 62 . . . . . . 42 51 80 27 . 29 192 . 216 301 500 262 . 14 356 2323 2852 582 259 Core Remaining (%) 47 | 100 53 . 49 . 37 . . 9 . . . . . . 67 . . . . 78 . . . . 64 . . 47 . . 15 . . 5 Volleys Fired 1459 | 4 57 111 . 14 114 7 29 22 . . 2 25 . . . 30 . 14 . 5 9 97 28 80 237 169 98 3 142 30 15 19 81 17 Largest 4 | 1 2 2 . 2 2 1 2 1 . . 1 2 . . . 3 . 3 . 2 2 2 2 2 3 3 3 1 3 3 2 2 2 4 Hottest 345 | 20 60 60 . 46 69 39 108 36 . . 36 66 . . . 99 . 99 . 66 81 121 169 321 240 334 264 72 216 200 305 320 178 345 Shots Fired 2277 | 4 115 223 1 27 218 7 34 22 . . 2 49 . . . 73 . 32 . 10 17 100 28 80 266 320 214 3 192 32 17 23 137 31 Gun 1740 | 4 115 188 . 26 201 . 31 . . . . 49 . . . 69 . 31 . 10 16 85 19 75 254 205 154 3 174 20 2 3 . 6 Cannon 453 | . . 35 . . . . . . . . . . . . . . . . . . 1 11 9 5 12 100 60 . 17 10 11 20 137 25 Launcher 55 | . . . 1 1 17 6 3 8 . . 2 . . . . . . . . . . . . . . 15 . . . 2 . . . . Special 29 | . . . . . . 1 . 14 . . . . . . . 4 . 1 . . . 4 . . . . . . 1 . 4 . . . Kinetic 1138 | 4 57 222 . 26 201 . 26 . . . . 49 . . . 69 . 31 . 10 16 22 . . 45 166 144 . . . . . 50 . Thermal 870 | . 58 1 . . . . 5 . . . . . . . . . . . . . . 63 19 75 209 59 12 3 191 30 11 22 87 25 Explosive 48 | . . . 1 1 17 6 3 8 . . 2 . . . . . . . . . . . . . . 8 . . . 2 . . . . Electromagnetic 183 | . . . . . . . . . . . . . . . . . . . . . 1 11 9 5 12 87 58 . . . . . . . Slashing 9 | . . . . . . . . . . . . . . . . . . . . . . . . . . . . . . . 2 1 . 6 Robot Hit Streak 51 | 4 6 13 . 12 51 1 18 7 . . 5 9 . . . 5 . 5 . 2 7 8 12 8 13 15 27 . 40 18 3 6 12 16 Robot Miss Streak 6 | . 6 3 . 1 2 . 2 2 . . . 4 . . . 4 . 5 . 1 1 3 2 3 4 4 4 . 3 2 . 3 5 2 Penetration Max 3 | . . . . . . . . . . . . . . . . 3 . . . . 1 2 . . 1 1 2 . . . . . . . Secondary Targets 13 | . . 4 . . 2 . . . . . . . . . . 1 . . . . . . . . 1 3 1 . 1 . . . . . Max Gunslinging Chain 1 | . . 1 . . 1 . . . . . . . . . . 1 . . . . . . . . 1 1 1 . 1 . . . . . Capacitor 355 | . . . . . . . . . . . . . . . . . . . . . . 61 26 78 190 . . . . . . . . . Shots Hit Robots 1744 | 4 70 152 . 24 188 99 49 47 12 . 17 25 5 . 2 37 1 12 2 3 18 66 23 53 176 203 129 . 64 13 78 70 78 24 Core Hits 789 | 1 34 70 . 8 79 33 26 22 3 . 12 8 3 . 2 27 . 2 1 1 8 31 9 23 67 96 55 . 37 15 27 37 40 12 Critical Kills 52 | . . 2 . . 1 . 1 . . . . 4 . . . 13 . 2 . 1 1 2 . . 1 4 18 . . 2 . . . . Critical Parts Destroyed 50 | . . . . . 2 . . . 1 . . . . . . 12 . 4 . . 2 4 . . 9 2 14 . . . . . . . Critical Strikes 172 | . . 2 . . 3 6 5 2 3 . . 4 . . 1 25 . 6 . 1 4 13 1 . 10 14 40 . 8 2 9 7 5 1 Burn 13 | . . . . . . . . . . . . . . . . . . . . . . 4 1 . . . . . 8 . . . . . Meltdown 2 | . . . . . . . . . . . . . . . . . . . . . . . . . . . . . . 2 . . . . Destroy 111 | . . 2 . . 3 . 1 . . . . 4 . . . 25 . 6 . 1 4 8 . . 10 10 37 . . . . . . . Blast 6 | . . . . . . . . . . . . . . . . . . . . . . . . . . 2 . . . . . . 4 . Corrupt 5 | . . . . . . . . . . . . . . . . . . . . . . . . . . 2 3 . . . . . . . Smash 1 | . . . . . . . . . 1 . . . . . . . . . . . . . . . . . . . . . . . . . Sever 32 | . . . . . . 6 4 2 2 . . . . . . . . . . . . . . . . . . . . . 9 7 1 1 Impale 2 | . . . . . . . . . . . . . . . 1 . . . . . . 1 . . . . . . . . . . . . Melee Attacks 804 | . 1 . . 3 24 197 54 75 20 . 43 3 8 . 5 23 1 . 2 1 23 1 . . . . 63 . . 12 136 85 22 2 Impact 7 | . . . . . . 1 . . 3 . 3 . . . . . . . . . . . . . . . . . . . . . . . Slashing 615 | . . . . . 24 147 50 75 13 . 9 . . . . . . . . . . . . . . . 40 . . 12 136 85 22 2 Piercing 121 | . . . . . . . . . . . 31 3 8 . 5 23 1 . 2 1 23 1 . . . . 23 . . . . . . . Sneak Attacks 97 | . 1 . . 3 . 43 9 12 5 . 6 . . . . 1 . . . . 6 1 . . . . 2 . . . 1 3 4 . Combat Hostiles 2 | . . . . . . 1 . . . . . . . . . . . . . . . . . . . . 1 . . . . . . . Follow-up Attacks . | . . . . . . . . . . . . . . . . . . . . . . . . . . . . . . . . . . . Damage Inflicted 72989 | 51 886 2440 . 445 3658 3887 1959 2154 416 . 1304 114 408 . 188 643 125 56 205 13 717 2057 719 1656 5779 9498 3178 . 5642 3165 6297 8668 4562 2099 Guns 22905 | 51 854 1986 . 321 2393 . 561 . . . . 114 . . . 339 . 56 . 13 74 1455 451 1542 5327 3767 876 . 2493 123 . 30 . 79 Cannons 14060 | . . 437 . . . . . . . . . . . . . . . . . . . 181 268 114 267 2848 1958 . 1263 678 . 1587 3319 1140 Explosions 13472 | . . . . 117 1224 635 440 490 . . 226 . . . . 31 . . . . . 295 . . 185 2882 . . 1886 2039 . 2095 123 804 Melee 22352 | . . . . . . 3252 958 1664 416 . 1078 . 408 . 188 264 125 . 205 . 643 126 . . . . 344 . . 325 6271 4892 1120 73 Ramming 200 | . 32 17 . 7 41 . . . . . . . . . . 9 . . . . . . . . . 1 . . . . 26 64 . 3 Kinetic 13145 | 51 468 2411 . 321 2393 . 437 . . . . 114 . . . 339 . 56 . 13 74 137 . . 734 3590 706 . . . . . 1301 . Thermal 25609 | . 386 12 . . . . 124 . . . . . . . . 31 . . . . . 1613 451 1542 4593 1017 170 . 5642 2384 . 3682 2018 1944 Explosive 5550 | . . . . 117 1224 635 440 490 . . 226 . . . . . . . . . . . . . . 1839 . . . 456 . . 123 . Electromagnetic 6024 | . . . . . . . . . . . . . . . . . . . . . . 181 268 114 452 3051 1958 . . . . . . . Impact 277 | . . . . . . 65 . . 83 . 129 . . . . . . . . . . . . . . . . . . . . . . . Slashing 19197 | . . . . . . 3187 958 1664 333 . 118 . . . . . . . . . . . . . . . 147 . . 325 6271 4922 1120 152 Piercing 2987 | . . . . . . . . . . . 831 . 408 . 188 264 125 . 205 . 643 126 . . . . 197 . . . . . . . Highest Corruption 33 | . 3 8 8 . 1 3 10 12 . 9 9 9 1 1 1 3 3 3 3 3 . 6 6 6 33 4 6 . 1 5 21 . . . Average Corruption 6 | . 2 7 8 . 1 1 6 9 . 9 9 1 1 1 1 2 3 3 3 3 . 6 6 5 24 2 4 . 1 2 11 . . . Corruption Purged 25 | . . . . . . 1 . 12 . . . . . . . . . . . . . . . 6 . . 6 . . . . . . . Corruption Blocked . | . . . . . . . . . . . . . . . . . . . . . . . . . . . . . . . . . . . Effects 393 | . 23 66 4 . 1 8 25 40 . 1 17 1 1 . 1 1 4 3 2 2 . 5 14 9 62 22 26 . 2 8 45 . . . Message Errors 104 | . 7 23 2 . 1 . 7 14 . . 4 . . . . . 2 . . . . . . 3 15 4 4 . 1 5 12 . . . Matter Fused 81 | . 3 18 . . . 1 10 9 . 1 2 1 . . . . 1 . 1 1 . 3 3 2 10 4 5 . . 1 5 . . . Heat Flow Errors 49 | . 4 12 1 . . 1 3 6 . . 1 . . . . 1 . 2 . . . . 2 . 2 5 3 . . 1 5 . . . Energy Discharges 44 | . 3 5 . . . 3 . 3 . . 3 . 1 . 1 . 1 . . . . 1 5 . 4 2 6 . . 1 5 . . . Parts Rejected 5 | . . 1 . . . 1 . 1 . . . . . . . . . . . . . . . . . . 1 . . . 1 . . . Parts Fused 4 | . . . . . . . 1 . . . 1 . . . . . . . . . . . . . 1 1 . . . . . . . . Data Loss (minor) 40 | . 2 2 . . . 1 . 4 . . 3 . . . . . . . 1 1 . 1 1 . 12 . 2 . 1 . 9 . . . Data Loss (major) 18 | . . 2 . . . 1 1 1 . . 2 . . . . . . . . . . . 1 3 3 1 1 . . . 2 . . . Misfires 11 | . 2 2 1 . . . 1 . . . . . . . . . . . . . . . . . 3 1 . . . . 1 . . . Alerts 10 | . 1 . . . . . 1 1 . . 1 . . . . . . 1 . . . . 1 . . 1 1 . . . 2 . . . Misdirections 4 | . . . . . . . . 1 . . . . . . . . . . . . . . . . . . . . . . 3 . . . Weapon Failures 23 | . 1 1 . . . . 1 . . . . . . . . . . . . . . . 1 1 12 3 3 . . . . . . . Overload Shots 198 | . . . . . . . . . . . . . . . . . . . . . . . . 1 12 8 9 3 155 10 . . . . Effects 15 | . . . . . . . . . . . . . . . . . . . . . . . . 1 . . 1 . 12 1 . . . . Energy Bleed 6 | . . . . . . . . . . . . . . . . . . . . . . . . . . . 1 . 5 . . . . . Heat Surge 5 | . . . . . . . . . . . . . . . . . . . . . . . . 1 . . . . 4 . . . . . Short Circuit 4 | . . . . . . . . . . . . . . . . . . . . . . . . . . . . . 3 1 . . . . Overflow Damage 4843 | . . 2 . . 54 465 57 212 61 . 200 . 146 . . 1 91 . 51 . 114 222 9 . . 305 49 . 314 501 499 1418 54 18 Projectiles 1311 | . . . . . . . . . . . . . . . . . . . . . . . 9 . . 95 12 . 223 192 . 735 45 . Explosions 1027 | . . . . . 54 . 16 27 . . 16 . . . . 1 . . . . . . . . . 210 . . 91 309 24 261 . 18 Melee 2505 | . . 2 . . . 465 41 185 61 . 184 . 146 . . . 91 . 51 . 114 222 . . . . 37 . . . 475 422 9 . Knockbacks 11 | . . 1 . . . . . . . . 1 . . . . . . . . . . . . . . 6 . . . . 1 1 1 . Impact 4 | . . 1 . . . . . . . . 1 . . . . . . . . . . . . . . . . . . . 1 1 . . Kinetic 7 | . . . . . . . . . . . . . . . . . . . . . . . . . . 6 . . . . . . 1 . Secondary . | . . . . . . . . . . . . . . . . . . . . . . . . . . . . . . . . . . . Self-Inflicted Damage 1092 | . . . 32 . 365 . 34 52 . . 31 . . . . 4 . . . . . 92 . . 91 81 . . 80 . 146 84 . . Shots 27 | . . . 1 . 9 . 2 1 . . 2 . . . . . . . . . . 1 . . 1 5 . . 1 . 2 2 . . Rammed 11 | . 5 1 . 1 2 . . . . . . . . . . 1 . . . . . . . . . . . . . . 1 . . . Targets Rammed 19 | . 5 1 . 1 2 . . . . . . . . . . 1 . . . . . . . . . 1 . . . . 1 6 . 1 Kicked 7 | . . . . . . . . . . . . . . . . . . . . . . . . . . . . . . . . 6 . 1 Crushed 1 | . . . . . . . . . . . . . . . . . . . . . . . . . . 1 . . . . . . . . Highest Temperature 504 | . 255 268 98 12 331 169 174 240 . . 240 17 . . . 400 45 268 2 42 447 448 157 273 504 465 182 . 159 167 145 58 163 105 Average Temperature 95 | . 48 80 57 5 26 55 59 107 . . 95 10 . . . 159 18 84 2 17 93 157 29 113 145 101 60 . 104 109 83 26 43 29 Received Heat Transfer 4987 | . 237 354 . 27 1142 243 192 105 30 . 117 36 . . . 9 . 27 . . 9 249 . . 63 100 358 . 126 18 441 527 90 487 Thermoelectric Energy+ 57 | . . . . . . . . . . . . . . . . . . . . . . . . . . . . . . . . . 57 . Effects 19 | . . 1 . . . . . . . . . . . . . 7 . . . . 1 7 . . 2 1 . . . . . . . . Shutdowns 4 | . . . . . . . . . . . . . . . . 1 . . . . 1 . . . 1 1 . . . . . . . . Energy Bleed 3 | . . 1 . . . . . . . . . . . . . . . . . . . 1 . . 1 . . . . . . . . . Interference 9 | . . . . . . . . . . . . . . . . 6 . . . . . 3 . . . . . . . . . . . . Matter Decay 1 | . . . . . . . . . . . . . . . . . . . . . . 1 . . . . . . . . . . . . Damage (minor) 1 | . . . . . . . . . . . . . . . . . . . . . . 1 . . . . . . . . . . . . Damage (major) 1 | . . . . . . . . . . . . . . . . . . . . . . 1 . . . . . . . . . . . . Siege Activations 13 | . . . . . . . . . . . . . . . . . . . . . . . . . 7 6 . . . . . . . . Total Turns 362 | . . . . . . . . . . . . . . . . . . . . . . . . . 228 134 . . . . . . . . Longest Duration 100 | . . . . . . . . . . . . . . . . . . . . . . . . . 100 52 . . . . . . . . Martial Activations . | . . . . . . . . . . . . . . . . . . . . . . . . . . . . . . . . . . . Shielding Activations . | . . . . . . . . . . . . . . . . . . . . . . . . . . . . . . . . . . . Robots Disrupted . | . . . . . . . . . . . . . . . . . . . . . . . . . . . . . . . . . . . Combat Hostiles . | . . . . . . . . . . . . . . . . . . . . . . . . . . . . . . . . . . . Robots Corrupted 20 | . . 1 . . . 1 . . 1 . 1 . . . . . . . . . . 1 . . 1 7 7 . . . . . . . Combat Hostiles 17 | . . . . . . 1 . . 1 . . . . . . . . . . . . 1 . . 1 6 7 . . . . . . . Parts Fried 48 | . . . . . . 2 . . 1 . . . . . . . . . . . . 3 . . 4 20 18 . . . . . . . Impact Corruptions 7 | . . 1 . . . 1 . . 1 . 3 . . . . . . . . . . . . . . . . . . . 1 . . . Robots Melted 8 | . . . . . . . . . . . . . . . . . . . . . . . . . 1 . . . 5 2 . . . . Combat Hostiles 8 | . . . . . . . . . . . . . . . . . . . . . . . . . 1 . . . 5 2 . . . . Parts Melted 64 | . . . . . . 1 . . . . . . . . . . . . . . . 1 . 6 8 . 1 . 37 5 . 5 . . Heat Transferred 27633 | . 875 25 . . . . 250 . . . . . . . . 50 . . . . . 2122 900 1937 4847 1176 290 . 7620 2160 . 2714 1485 1182 Parts Sabotaged 3 | . . . . . . . . . . . . . . . . . . . . . . . . . . . . . . . . 3 . . Parts Stolen . | . . . . . . . . . . . . . . . . . . . . . . . . . . . . . . . . . . . Parts Stripped . | . . . . . . . . . . . . . . . . . . . . . . . . . . . . . . . . . . . Power Chain Reactions 5 | . . . . . . . . . . . . . . . . . . . . . . 1 . . . 4 . . . . . . . . Alert | -11 -10 -9 -9 -8 -8 -7 -7 -7 -6 -6 -6 -6 -6 -6 -5 -5 -5 -5 -5 -4 -4 -4 -4 -4 -4 -3 -3 -3 -2 -2 -2 -1 -1 -1 ------- Run | Yrd Mat Mat Min Mat Gar Fac Gar Fac Fac Was Fac Low Low Dat Pro Fac Upp Upp Zhi Pro Fac Ext Cet Arc Hub Res Arm Lab Res Qua Sec Acc Com Ac0 Maximum Alert Level 5 | . . 2 1 . 4 3 5 3 1 . . . . . . 1 . . . . . 3 2 1 2 3 5 . 3 4 4 4 5 . Low Security (%) 27 | 100 100 20 70 100 31 . . 5 68 100 100 . . . . 71 . . . . 100 28 . 59 61 20 . . 14 . . . . . Level 1 17 | . . 38 29 . 12 41 . 48 31 . . . . . . 28 . . . . . 13 . 40 31 29 . . 26 . . . . . Level 2 22 | . . 40 . . 21 50 5 40 . . . . . . . . . . . . . 43 100 . 7 31 53 . 3 21 13 5 . . Level 3 16 | . . . . . 24 8 40 5 . . . . . . . . . . . . . 14 . . . 18 9 . 54 60 46 25 31 . Level 4 11 | . . . . . 10 . 38 . . . . . . . . . . . . . . . . . . . 20 . . 18 40 68 12 . Level 5 2 | . . . . . . . 16 . . . . . . . . . . . . . . . . . . . 16 . . . . . 14 . High Security 2 | . . . . . . . . . . . . . . . . . . . . . . . . . . . . . . . . . 40 . Max Security . | . . . . . . . . . . . . . . . . . . . . . . . . . . . . . . . . . . . Peak Influence 2120 | 5 80 582 216 105 1321 969 1677 894 245 29 112 . . . . 282 . . . . 170 808 570 285 585 870 1950 . 1096 1289 1201 1415 2120 . Initial 879 | . . . 216 65 11 693 658 879 241 29 . . . . . . . . . . 150 68 434 162 3 298 449 . . 600 706 708 849 . Average 570 | . 13 331 186 30 528 509 1169 398 174 16 25 . . . . 98 . . . . 153 417 489 162 194 424 942 . 616 887 979 1185 1505 . Influence Increases 23343 | 5 383 1262 12 143 1436 1442 1079 1087 134 . 350 180 10 . 5 435 5 125 10 5 260 1416 325 261 1185 1558 2549 . 1578 1071 1160 1289 2377 206 Destroy 0b10 Robot/C 9460 | . 240 740 . 100 640 500 540 520 20 . 100 80 . . . 120 . . . . 40 620 160 80 380 860 980 . 480 280 380 640 960 . Destroy 0b10 Robot/NC 705 | 5 30 75 . 5 5 80 . 65 15 . 35 . 10 . 5 40 5 5 10 5 10 30 10 45 40 30 20 . 35 5 25 20 40 . Destroy Leader 1842 | . 62 192 . 22 20 126 30 158 12 . 40 10 . . . 42 . . . . 10 42 . . 92 168 196 . 130 60 110 104 216 . Allied During Kill 2093 | . . . . . 11 28 89 89 . . . . . . . . . . . . 3 535 149 75 46 8 528 . 30 . . . 502 . Trap Triggered on 0b10 260 | . . 80 . . 30 60 30 . 60 . . . . . . . . . . . . . . . . . . . . . . . . . Successful Hack 1150 | . 36 35 . . 14 85 . 106 7 . 44 . . . . 21 . . . . 17 62 . . 33 133 103 . 96 57 109 48 144 . Select Force Hacks 100 | . . . . . . . . . . . . . . . . . . . . . . . . . 100 . . . . . . . . . Disable Machine 1050 | . . 15 . 15 . 105 . 45 . . 15 . . . . 75 . . . . . . . 45 135 75 120 . 90 90 150 15 45 15 Anti-Garrison Action 850 | . . . . . 600 . 200 . . . . . . . . . . . . . . . . . . . . . . . . . 50 . Destroy Structure 3088 | . . 5 12 1 116 83 85 59 5 . 26 . . . . 92 . . . . 30 82 6 16 284 224 122 . 627 294 221 147 360 191 Advance Influence 150 | . . . . . . . . . . . . . . . . . . . . . 150 . . . . . . . . . . . . . Partial Spotted 330 | . . 15 . . . 75 . 45 15 . . . . . . 45 . . . . . 30 . . . . 15 . 45 15 30 . . . Lose Combat Pursuer 2265 | . 15 105 . . . 300 105 . . . 90 90 . . . . . 120 . . . 15 . . 75 60 465 . 45 270 135 315 60 . Influence Decreases 23337 | 5 383 708 398 294 132 1822 343 2270 543 85 328 202 10 . 5 179 165 169 62 5 120 780 694 657 627 1271 1459 1946 510 882 1237 1141 1605 2300 Entered New Map 10001 | . . . 338 103 6 628 283 798 253 56 . 9 . . . . 95 19 52 . . 72 342 245 8 271 407 1946 . 468 551 472 479 2100 Time Decay 8597 | 5 373 638 60 191 . 604 . 522 190 29 195 193 10 . 5 149 70 120 10 5 110 478 262 392 479 630 542 . 410 254 546 589 446 90 Lost Part 1369 | . 10 70 . . 126 100 40 30 90 . 53 . . . . 30 . 30 . . 10 50 10 . 60 200 80 . 20 10 140 80 20 110 Lost Ally 1870 | . . . . . . 190 20 170 10 . 80 . . . . . . . . . . 180 80 20 80 20 280 . 80 . . . 660 . Purge Threat 1500 | . . . . . . 300 . 750 . . . . . . . . . . . . . . . . . 150 150 . . 150 . . . . Squads Dispatched 153 | . 2 2 . 1 . 20 . 13 2 . 7 . . . . 3 . . . . 1 2 . . 10 10 10 . 11 4 11 15 29 . Investigation 38 | . . . . . . 8 . 6 1 . 4 . . . . 2 . . . . 1 . . . 2 7 3 . 2 1 . 1 . . Extermination 32 | . . . . . . 3 . 4 . . 2 . . . . . . . . . . . . . 3 1 2 . 3 2 4 5 3 . Reinforcement 32 | . 2 2 . . . 4 . 3 1 . 1 . . . . 1 . . . . . 1 . . 3 2 3 . 3 1 4 . 1 . Assault 44 | . . . . . . 2 . . . . . . . . . . . . . . . 1 . . 2 . 2 . . . 3 9 25 . Garrison 7 | . . . . 1 . 3 . . . . . . . . . . . . . . . . . . . . . . 3 . . . . . Intercept . | . . . . . . . . . . . . . . . . . . . . . . . . . . . . . . . . . . . Searches Triggered . | . . . . . . . . . . . . . . . . . . . . . . . . . . . . . . . . . . . Unchained Authorized 5 | . . . . . . . . . 1 . 1 . . . . 1 . . . . . . . . . . . . 1 . . 1 . . Data Miner Redirects 9 | . . . . . . . . . . . . . . . . . . . . . 1 1 . . 2 . 2 . . . 1 2 . . Construction Impeded 1 | . . . . . . . . . . . . . . . . . . . . . . 1 . . . . . . . . . . . . Haulers Reinforced 7 | . . . . . . 2 . 3 1 . . . . . . . . . . . . . . . . . . . . . 1 . . . Active Scanning Responses . | . . . . . . . . . . . . . . . . . . . . . . . . . . . . . . . . . . . Cargo Convoy Interrupts . | . . . . . . . . . . . . . . . . . . . . . . . . . . . . . . . . . . . Stealth | -11 -10 -9 -9 -8 -8 -7 -7 -7 -6 -6 -6 -6 -6 -6 -5 -5 -5 -5 -5 -4 -4 -4 -4 -4 -4 -3 -3 -3 -2 -2 -2 -1 -1 -1 --------- Run | Yrd Mat Mat Min Mat Gar Fac Gar Fac Fac Was Fac Low Low Dat Pro Fac Upp Upp Zhi Pro Fac Ext Cet Arc Hub Res Arm Lab Res Qua Sec Acc Com Ac0 Distress Signals 33 | . 1 2 . 1 . 4 . . . . . . . . . 2 . . . . . 2 2 . 1 6 5 . 2 . 2 2 1 . Communications Jammed 92 | . . . . . . . . . . . . . . . . 7 . . . . . 38 . . 19 17 . . 9 2 . . . . Distress Signals 92 | . . . . . . . . . . . . . . . . 7 . . . . . 38 . . 19 17 . . 9 2 . . . . Times Spotted 861 | . 31 55 . 6 33 53 33 31 6 4 15 7 . . . 9 . 7 . 1 2 32 10 25 43 86 89 . 37 37 74 55 55 25 Peak Tracking Total 18 | . 4 7 . 4 7 8 7 3 2 4 5 4 . . . 3 . 4 . 1 1 9 5 1 6 10 18 . 8 12 17 10 8 18 Tactical Retreats 96 | . 1 3 . . . 15 4 . . . 4 4 . . . . . 6 . . . 1 . . 5 4 14 . 3 6 12 10 3 1 ECM-based Alert Blocks 14 | . . . . . . . . . . . . . . . . . . . . . . . . . . . . . . . 14 . . . Traps | -11 -10 -9 -9 -8 -8 -7 -7 -7 -6 -6 -6 -6 -6 -6 -5 -5 -5 -5 -5 -4 -4 -4 -4 -4 -4 -3 -3 -3 -2 -2 -2 -1 -1 -1 ------- Run | Yrd Mat Mat Min Mat Gar Fac Gar Fac Fac Was Fac Low Low Dat Pro Fac Upp Upp Zhi Pro Fac Ext Cet Arc Hub Res Arm Lab Res Qua Sec Acc Com Ac0 Traps Triggered 33 | . 2 . . 2 5 1 2 5 1 . 1 . . . . . . . . . . 6 . . . 2 3 . 1 . 2 . . . Indirectly 1 | . . . . . . . . . . . . . . . . . . . . . . . . . . 1 . . . . . . . . Trap Hack Attempts 410 | . 76 98 . 23 21 99 . 2 91 . . . . . . . . . . . . . . . . . . . . . . . . . Triggered . | . . . . . . . . . . . . . . . . . . . . . . . . . . . . . . . . . . . Disarmed 3 | . . . . . 1 . . . 2 . . . . . . . . . . . . . . . . . . . . . . . . . Reprogrammed 48 | . 8 8 . 2 2 12 . 1 15 . . . . . . . . . . . . . . . . . . . . . . . . . Reused 27 | . . 8 . . 3 6 3 . 7 . . . . . . . . . . . . . . . . . . . . . . . . . Traps Extracted 40 | . 8 10 . 2 2 6 . 1 10 . . . . . . . . . . . . . . . 1 . . . . . . . . . Installed 31 | . . 12 . . 3 2 3 . 9 . . . . . . . . . . . . . . . 2 . . . . . . . . . Triggered 26 | . . 8 . . 3 6 3 . 6 . . . . . . . . . . . . . . . . . . . . . . . . . Most Traps Carried 9 | . 8 8 2 4 4 5 3 1 6 . . . . . . . . 9 9 6 6 6 6 6 6 5 . . . . . . . . Machines | -11 -10 -9 -9 -8 -8 -7 -7 -7 -6 -6 -6 -6 -6 -6 -5 -5 -5 -5 -5 -4 -4 -4 -4 -4 -4 -3 -3 -3 -2 -2 -2 -1 -1 -1 ---------- Run | Yrd Mat Mat Min Mat Gar Fac Gar Fac Fac Was Fac Low Low Dat Pro Fac Upp Upp Zhi Pro Fac Ext Cet Arc Hub Res Arm Lab Res Qua Sec Acc Com Ac0 Machines Disabled 88 | . . 1 . 1 2 7 4 3 . . 1 . . . . 5 . . . . . 2 . 3 9 5 8 1 6 6 11 1 5 7 Max in Single Turn 5 | . . 1 . 1 1 1 1 1 . . 1 . . . . 5 . . . . . . . 1 4 1 1 1 2 1 2 1 2 5 Garrison Access 8 | . . . . . . 2 . 1 . . . . . . . 1 . . . . . . . . 2 . . . 1 1 . . . . Garrison Relay 7 | . . . . . 3 . 4 . . . . . . . . . . . . . . . . . . . . . . . . . . . Phase Generator 1 | . . . . . . . . . . . . . . . . . . . . . . . . . . . . . . . . . 1 . Network Hub 4 | . . . . . . . . . . . . . . . . . . . . . . . . . 4 . . . . . . . . . Machines Repaired . | . . . . . . . . . . . . . . . . . . . . . . . . . . . . . . . . . . . Machines Dismantled 3 | . . . . . 1 . 2 . . . . . . . . . . . . . . . . . . . . . . . . . . . Machines Sabotaged 2 | . . . . . . . . . . . . . . . . . . . . . . . . . 2 . . . . . . . . . Overloaded Fab Kills . | . . . . . . . . . . . . . . . . . . . . . . . . . . . . . . . . . . . Hacking | -11 -10 -9 -9 -8 -8 -7 -7 -7 -6 -6 -6 -6 -6 -6 -5 -5 -5 -5 -5 -4 -4 -4 -4 -4 -4 -3 -3 -3 -2 -2 -2 -1 -1 -1 --------- Run | Yrd Mat Mat Min Mat Gar Fac Gar Fac Fac Was Fac Low Low Dat Pro Fac Upp Upp Zhi Pro Fac Ext Cet Arc Hub Res Arm Lab Res Qua Sec Acc Com Ac0 Machines Accessed 183 | . 6 11 . 2 3 35 . 29 4 . 10 1 1 4 . 6 . . 5 1 3 5 1 . 6 7 10 . 6 7 8 5 7 . Terminals 97 | . 6 7 . . 3 14 . 13 3 . 6 . . . . 2 . . . 1 1 5 1 . 5 3 6 . 2 4 7 2 6 . Fabricators 18 | . . . . . . 5 . 5 . . 2 . . . . 1 . . . . 1 . . . . 2 2 . . . . . . . Repair Stations 17 | . . 2 . 1 . 3 . 4 1 . . . . . . 1 . . . . . . . . . . 1 . 1 1 . 1 1 . Recycling Units 12 | . . . . . . 5 . 2 . . 2 . . . . 1 . . . . 1 . . . . . 1 . . . . . . . Scanalyzers 15 | . . 2 . . . 4 . 3 . . . . . . . . . . . . . . . . . 1 . . 1 1 1 2 . . Garrison Access 13 | . . . . 1 . 4 . 2 . . . . . . . 1 . . . . . . . . 1 1 . . 2 1 . . . . Total Hacks 668 | . 21 51 . 7 7 102 . 89 9 . 27 1 1 31 . 17 . . 18 4 10 16 1 . 12 50 43 . 25 32 42 20 32 . Successful 334 | . 9 35 . 3 1 51 . 53 7 . 13 1 1 31 . 9 . . 18 4 6 10 . . 7 15 16 . 8 7 17 3 9 . Failed 330 | . 11 15 . 4 6 51 . 35 2 . 14 . . . . 8 . . . . 4 6 1 . 5 35 27 . 17 24 25 17 23 . Catastrophic 79 | . 3 2 . . 3 9 . 7 1 . 3 . . . . 1 . . . . . 2 1 . 2 8 6 . 4 8 6 5 8 . Database Lockouts 4 | . 1 1 . . . . . 1 . . . . . . . . . . . . . . . . . . . . . 1 . . . . Manual 303 | . 21 25 . 3 1 57 . 43 5 . 11 . . . . 9 . . . . 6 12 . . 8 22 16 . 16 19 11 4 14 . Terminals 363 | . 21 29 . . 7 42 . 40 8 . 18 . . . . 7 . . . 4 2 16 1 . 10 28 23 . 13 20 37 8 29 . Fabricators 79 | . . . . . . 20 . 19 . . 5 . . . . 4 . . . . 6 . . . . 11 14 . . . . . . . Repair Stations 49 | . . 6 . 3 . 7 . 10 1 . . . . . . 1 . . . . . . . . . . 1 . 5 4 . 8 3 . Recycling Units 30 | . . . . . . 10 . 7 . . 4 . . . . 2 . . . . 2 . . . . . 5 . . . . . . . Scanalyzers 60 | . . 16 . . . 13 . 9 . . . . . . . . . . . . . . . . . 5 . . 4 4 5 4 . . Garrison Access 36 | . . . . 4 . 10 . 4 . . . . . . . 3 . . . . . . . . 2 6 . . 3 4 . . . . Terminal Hacks 120 | . 1 5 . . 1 9 . 10 3 . 3 1 1 31 . 1 . . 18 4 1 3 . . 1 5 6 . 3 1 9 1 2 . Record 22 | . . . . . . . . . . . . . . 11 . . . . 6 4 . 1 . . . . . . . . . . . . Part Schematic 18 | . . . . . . . . . 1 . 1 . . 11 . . . . 4 . . . . . . . 1 . . . . . . . Robot Schematic 8 | . . . . . . 1 . . . . . . . 6 . . . . . . 1 . . . . . . . . . . . . . Robot Analysis 9 | . 1 2 . . . . . . 1 . . . . . . . . . 4 . . . . . . 1 . . . . . . . . Prototype ID Bank 14 | . . 1 . . . . . 2 . . . . . 3 . . . . 4 . . 2 . . . 1 . . . . 1 . . . Open Door 5 | . . . . . . . . . . . . 1 1 . . . . . . . . . . . . . 1 . . . 2 . . . Open DSF 1 | . . . . . . . . . 1 . . . . . . . . . . . . . . . . . . . . . . . . . Level Access Points 1 | . . . . . . . . . . . . . . . . . . . . . . . . . . . . . . . 1 . . . Branch Access Points 4 | . . 1 . . . . . 1 . . 1 . . . . . . . . . . . . . . . . . 1 . . . . . Terminal Index 3 | . . . . . . 1 . . . . 1 . . . . . . . . . . . . . . . . . 1 . . . . . Garrison Index 2 | . . . . . . 1 . . . . . . . . . . . . . . . . . . . . 1 . . . . . . . Unreport Threat 10 | . . . . . . 2 . 5 . . . . . . . . . . . . . . . . . 1 1 . . 1 . . . . Locate Traps 2 | . . 1 . . . 1 . . . . . . . . . . . . . . . . . . . . . . . . . . . . Maintenance Status 1 | . . . . . . . . . . . . . . . . . . . . . . . . . . 1 . . . . . . . . Surveillance Status 2 | . . . . . . . . . . . . . . . . . . . . . . . . . . . . . . . 1 . 1 . Recall Investigation 3 | . . . . . . 1 . 1 . . . . . . . . . . . . . . . . 1 . . . . . . . . . Recall Extermination 2 | . . . . . . . . . . . . . . . . . . . . . . . . . . 1 . . . . 1 . . . Recall Reinforcements 2 | . . . . . . . . 1 . . . . . . . . . . . . . . . . . . . . . . 1 . . . Hauler Manifests 1 | . . . . . . 1 . . . . . . . . . . . . . . . . . . . . . . . . . . . . Registered Prototypes 1 | . . . . . . . . . . . . . . . . . . . . . . . . . . . . . 1 . . . . . Zone Layout 7 | . . . . . . 1 . . . . . . . . . 1 . . . . . . . . . . 2 . . . 2 1 . . Patrol Navigation 1 | . . . . . 1 . . . . . . . . . . . . . . . . . . . . . . . . . . . . . Disengage Seal 1 | . . . . . . . . . . . . . . . . . . . . . . . . . . . . . . . . . 1 . Fabricator Hacks 29 | . . . . . . 6 . 9 . . 3 . . . . 2 . . . . 2 . . . . 3 4 . . . . . . . Load Schematic 17 | . . . . . . 4 . 5 . . 2 . . . . 1 . . . . 1 . . . . 2 2 . . . . . . . Build 12 | . . . . . . 2 . 4 . . 1 . . . . 1 . . . . 1 . . . . 1 2 . . . . . . . Repair Station Hacks 20 | . . 5 . 2 . 4 . 7 . . . . . . . . . . . . . . . . . . . . . . . . 2 . Scan Component 12 | . . 3 . 1 . 3 . 4 . . . . . . . . . . . . . . . . . . . . . . . . 1 . Repair 8 | . . 2 . 1 . 1 . 3 . . . . . . . . . . . . . . . . . . . . . . . . 1 . Recycling Unit Hacks 1 | . . . . . . . . . . . 1 . . . . . . . . . . . . . . . . . . . . . . . Report Inventory 1 | . . . . . . . . . . . 1 . . . . . . . . . . . . . . . . . . . . . . . Scanalyzer 36 | . . 15 . . . 9 . 6 . . . . . . . . . . . . . . . . . 1 . . 1 1 3 . . . Insert Component 13 | . . 7 . . . 3 . 3 . . . . . . . . . . . . . . . . . . . . . . . . . . Analyze 12 | . . 7 . . . 3 . 2 . . . . . . . . . . . . . . . . . . . . . . . . . . Retrieve Study 11 | . . 1 . . . 3 . 1 . . . . . . . . . . . . . . . . . 1 . . 1 1 3 . . . Garrison Access Hacks 11 | . . . . 1 . 3 . 1 . . . . . . . 2 . . . . . . . . 2 . . . 1 1 . . . . Unlock Access 2 | . . . . 1 . 1 . . . . . . . . . . . . . . . . . . . . . . . . . . . . Seal Access 7 | . . . . . . 2 . 1 . . . . . . . 1 . . . . . . . . 1 . . . 1 1 . . . . Coupler Status 2 | . . . . . . . . . . . . . . . . 1 . . . . . . . . 1 . . . . . . . . . Unauthorized Hacks 117 | . 8 10 . . . 20 . 20 4 . 6 . . . . 4 . . . . 3 7 . . 4 6 6 . 3 4 5 2 5 . Terminals 78 | . 8 10 . . . 11 . 10 3 . 4 . . . . 1 . . . . 1 7 . . 4 3 1 . 1 3 5 1 5 . Assimilate 6 | . 1 1 . . . 1 . 1 1 . . . . . . . . . . . . . . . . . . . . . 1 . . . Botnet 37 | . 1 4 . . . 4 . 4 1 . 3 . . . . 1 . . . . 1 2 . . 2 2 1 . 1 2 2 1 5 . Disrupt 4 | . 1 . . . . . . 1 . . . . . . . . . . . . . . . . . . . . . 1 1 . . . Operators 1 | . . . . . . 1 . . . . . . . . . . . . . . . . . . . . . . . . . . . . Skim 28 | . 5 5 . . . 5 . 4 1 . 1 . . . . . . . . . . 5 . . . 1 . . . . 1 . . . Sabotage 2 | . . . . . . . . . . . . . . . . . . . . . . . . . 2 . . . . . . . . . Fabricators 12 | . . . . . . 3 . 5 . . . . . . . 1 . . . . . . . . . . 3 . . . . . . . Report 3 | . . . . . . 1 . 1 . . . . . . . . . . . . . . . . . . 1 . . . . . . . Prioritize 6 | . . . . . . 1 . 2 . . . . . . . 1 . . . . . . . . . . 2 . . . . . . . Fabnet 1 | . . . . . . . . 1 . . . . . . . . . . . . . . . . . . . . . . . . . . Haulers 2 | . . . . . . 1 . 1 . . . . . . . . . . . . . . . . . . . . . . . . . . Repair Stations 7 | . . . . . . . . 1 1 . . . . . . 1 . . . . . . . . . . 1 . 1 1 . 1 . . Patch 7 | . . . . . . . . 1 1 . . . . . . 1 . . . . . . . . . . 1 . 1 1 . 1 . . Recycling Units 14 | . . . . . . 5 . 3 . . 2 . . . . 1 . . . . 2 . . . . . 1 . . . . . . . Reject 5 | . . . . . . 2 . 1 . . 1 . . . . . . . . . 1 . . . . . . . . . . . . . Recyclers 2 | . . . . . . . . 1 . . . . . . . . . . . . . . . . . . 1 . . . . . . . Mask 7 | . . . . . . 3 . 1 . . 1 . . . . 1 . . . . 1 . . . . . . . . . . . . . Scanalyzers . | . . . . . . . . . . . . . . . . . . . . . . . . . . . . . . . . . . . Garrison Access 6 | . . . . . . 1 . 1 . . . . . . . . . . . . . . . . . 3 . . 1 . . . . . Restock 1 | . . . . . . . . . . . . . . . . . . . . . . . . . . 1 . . . . . . . . Reprogram 4 | . . . . . . 1 . 1 . . . . . . . . . . . . . . . . . 1 . . 1 . . . . . Watchers 1 | . . . . . . . . . . . . . . . . . . . . . . . . . . 1 . . . . . . . . Data Cores Recovered 3 | . . . . . . . . 2 . . . . . . . . . . . . . . . . . . 1 . . . . . . . Used . | . . . . . . . . . . . . . . . . . . . . . . . . . . . . . . . . . . . Hacking Detections 156 | . 6 11 . 1 3 33 . 26 3 . 10 . . . . 5 . . . 1 3 5 1 . 4 6 8 . 5 7 6 5 7 . Full Trace Events 22 | . . . . . 2 6 . 4 . . 4 . . . . 1 . . . . 1 . . . . 2 2 . . . . . . . Feedback Events 2 | . . . . . 1 1 . . . . . . . . . . . . . . . . . . . . . . . . . . . . Corruption 1 | . . . . . 1 . . . . . . . . . . . . . . . . . . . . . . . . . . . . . Hackware Fried 1 | . . . . . . 1 . . . . . . . . . . . . . . . . . . . . . . . . . . . . Feedback Blocked . | . . . . . . . . . . . . . . . . . . . . . . . . . . . . . . . . . . . Robot Schematics Acquired 8 | . . . . . . 1 . . . . . . . 6 . . . . . . 1 . . . . . . . . . . . . . Robots Built 8 | . . . . . . 2 . 4 . . 2 . . . . . . . . . . . . . . . . . . . . . . . Authchips 2 | . . . . . . . . 2 . . . . . . . . . . . . . . . . . . . . . . . . . . Time 312 | . . . . . . 67 . 178 . . 67 . . . . . . . . . . . . . . . . . . . . . . . Total Robot Build Rating 32 | . . . . . . 8 . 16 . . 8 . . . . . . . . . . . . . . . . . . . . . . . Part Schematics Acquired 29 | . . 7 . . . 3 . 1 1 . 1 . . 11 . . . . 4 . . . . . . . 1 . . . . . . . Parts Built 7 | . . . . . . 1 . 1 . . . . . . . 1 . . . . 1 . . . . 1 2 . . . . . . . Authchips . | . . . . . . . . . . . . . . . . . . . . . . . . . . . . . . . . . . . Time 500 | . . . . . . 49 . 67 . . . . . . . 76 . . . . 93 . . . . 93 122 . . . . . . . Total Part Build Rating 36 | . . . . . . 2 . 4 . . . . . . . 5 . . . . 7 . . . . 7 11 . . . . . . . Part Studies Acquired 11 | . . 1 . . . 3 . 1 . . . . . . . . . . . . . . . . . 1 . . 1 1 3 . . . Parts Repaired 8 | . . 2 . 1 . 1 . 3 . . . . . . . . . . . . . . . . . . . . . . . . 1 . Time 285 | . . 52 . 32 . 38 . 127 . . . . . . . . . . . . . . . . . . . . . . . . 36 . Parts Recycled . | . . . . . . . . . . . . . . . . . . . . . . . . . . . . . . . . . . . Recycled Matter . | . . . . . . . . . . . . . . . . . . . . . . . . . . . . . . . . . . . Retrieved Matter . | . . . . . . . . . . . . . . . . . . . . . . . . . . . . . . . . . . . Retrieved Components . | . . . . . . . . . . . . . . . . . . . . . . . . . . . . . . . . . . . Parts Scanalyzed 12 | . . 7 . . . 3 . 2 . . . . . . . . . . . . . . . . . . . . . . . . . . Part Schematics Acquired 11 | . . 7 . . . 3 . 1 . . . . . . . . . . . . . . . . . . . . . . . . . . Parts Damaged . | . . . . . . . . . . . . . . . . . . . . . . . . . . . . . . . . . . . Bothacking | -11 -10 -9 -9 -8 -8 -7 -7 -7 -6 -6 -6 -6 -6 -6 -5 -5 -5 -5 -5 -4 -4 -4 -4 -4 -4 -3 -3 -3 -2 -2 -2 -1 -1 -1 ------------ Run | Yrd Mat Mat Min Mat Gar Fac Gar Fac Fac Was Fac Low Low Dat Pro Fac Upp Upp Zhi Pro Fac Ext Cet Arc Hub Res Arm Lab Res Qua Sec Acc Com Ac0 Used RIF Installer 2 | . . . . . 1 . 1 . . . . . . . . . . . . . . . . . . . . . . . . . . . Signal Jammer 1 | . . . . . . . 1 . . . . . . . . . . . . . . . . . . . . . . . . . . . Robots Hacked 48 | . . . . 1 . 25 2 9 3 . 1 . 1 . . 1 . 1 . . . 2 . . . . . . 1 . 1 . . . Non-combat 26 | . . . . 1 . 16 . 3 2 . . . . . . 1 . . . . . 2 . . . . . . 1 . . . . . Combat 22 | . . . . . . 9 2 6 1 . 1 . 1 . . . . 1 . . . . . . . . . . . . 1 . . . Robot Hacks Applied 64 | . . . . 1 . 37 3 10 3 . . . . . . 1 . 1 . . . 3 . . . . . . 1 . 4 . . . parse_system 6 | . . . . . . 2 . . 1 . . . . . . . . 1 . . . 2 . . . . . . . . . . . . no_distress 8 | . . . . 1 . 5 . 1 1 . . . . . . . . . . . . . . . . . . . . . . . . . generate_echo 2 | . . . . . . 2 . . . . . . . . . . . . . . . . . . . . . . . . . . . . find_chute 2 | . . . . . . 1 . . 1 . . . . . . . . . . . . . . . . . . . . . . . . . ignore_repairs 5 | . . . . . . 4 . 1 . . . . . . . . . . . . . . . . . . . . . . . . . . randomize_corridors 1 | . . . . . . 1 . . . . . . . . . . . . . . . . . . . . . . . . . . . . map_earth 1 | . . . . . . 1 . . . . . . . . . . . . . . . . . . . . . . . . . . . . find_fabricator 4 | . . . . . . 2 . 2 . . . . . . . . . . . . . . . . . . . . . . . . . . find_dsf 2 | . . . . . . 2 . . . . . . . . . . . . . . . . . . . . . . . . . . . . ignore_parts 1 | . . . . . . 1 . . . . . . . . . . . . . . . . . . . . . . . . . . . . map_route 1 | . . . . . . . . . . . . . . . . 1 . . . . . . . . . . . . . . . . . . mark_security 3 | . . . . . . 3 . . . . . . . . . . . . . . . . . . . . . . . . . . . . disable_scanner 1 | . . . . . . . . . . . . . . . . . . . . . . . . . . . . . . . 1 . . . report_analyses 3 | . . . . . . . . . . . . . . . . . . . . . . . . . . . . . . . 3 . . . find_shortcuts 2 | . . . . . . 1 1 . . . . . . . . . . . . . . . . . . . . . . . . . . . link_fov 1 | . . . . . . . . . . . . . . . . . . . . . . . . . . . . . 1 . . . . . overload_power 1 | . . . . . . 1 . . . . . . . . . . . . . . . . . . . . . . . . . . . . disable_weapons 1 | . . . . . . 1 . . . . . . . . . . . . . . . . . . . . . . . . . . . . reboot_system 4 | . . . . . . 1 2 1 . . . . . . . . . . . . . . . . . . . . . . . . . . overwrite_iff 2 | . . . . . . 2 . . . . . . . . . . . . . . . . . . . . . . . . . . . . formatsys_low 3 | . . . . . . 2 . . . . . . . . . . . . . . . 1 . . . . . . . . . . . . formatsys_high 10 | . . . . . . 5 . 5 . . . . . . . . . . . . . . . . . . . . . . . . . . Relay Couplers Released 35 | . . . . . 11 . 14 3 . . . . . . . 4 . . . . . . . . 1 . . . 2 . . . . . Machine Destruction 35 | . . . . . 11 . 14 3 . . . . . . . 4 . . . . . . . . 1 . . . 2 . . . . . Attached 14 | . . . . . . 5 2 5 . . . . . . . 1 . . . . . . . . . . . . 1 . . . . . Fabnet Peak Effective % 3 | . . . . . . . . . 3 3 3 3 3 3 1 1 1 1 1 . . . . . . . . . . . . . . . Autooverrided 2 | . . . . . . . . . . . 1 . 1 . . . . . . . . . . . . . . . . . . . . . Robots Rewired 23 | . . . . . . . . . . . . . . . . . . . . . . 14 . . . . 9 . . . . . . . Allies Hacked 3 | . . . . . . 1 . . . . . . . . . . . . . . . 2 . . . . . . . . . . . . Hacks Repelled . | . . . . . . . . . . . . . . . . . . . . . . . . . . . . . . . . . . . Allies | -11 -10 -9 -9 -8 -8 -7 -7 -7 -6 -6 -6 -6 -6 -6 -5 -5 -5 -5 -5 -4 -4 -4 -4 -4 -4 -3 -3 -3 -2 -2 -2 -1 -1 -1 -------- Run | Yrd Mat Mat Min Mat Gar Fac Gar Fac Fac Was Fac Low Low Dat Pro Fac Upp Upp Zhi Pro Fac Ext Cet Arc Hub Res Arm Lab Res Qua Sec Acc Com Ac0 Total Allies 121 | . . . . . 1 14 2 13 1 . 3 . 1 . . . . . . . . 26 . . . . 19 . 2 . . . 39 . Largest Group 24 | . . . . . 1 5 2 5 1 . 3 . 1 . . . . . . . . 24 12 7 6 . 12 2 2 . . . 16 . Highest-Rated Group 1138 | . . . . . 31 96 190 133 10 . 76 . 12 . . . . . . . . 1138 506 290 242 . 601 85 116 . . . 663 . Highest-Rated Ally 234 | . . . . . 31 32 95 32 10 . 32 . 12 . . . . . . . . 159 51 51 51 . 58 43 58 . . . 234 . Total Orders 67 | . . . . . . 6 . 1 . . 1 . . . . . . . . . 2 20 18 12 3 2 . 2 . . . . . . STAY 11 | . . . . . . 1 . 1 . . . . . . . . . . . . 1 3 2 2 . . . 1 . . . . . . FOLLOW 19 | . . . . . . 3 . . . . . . . . . . . . . . . 5 5 5 . . . 1 . . . . . . DROP 5 | . . . . . . . . . . . . . . . . . . . . . . 1 3 1 . . . . . . . . . . PICKUP 7 | . . . . . . 2 . . . . . . . . . . . . . . . 2 2 1 . . . . . . . . . . COLLECT 9 | . . . . . . . . . . . . . . . . . . . . . . . 6 3 . . . . . . . . . . EXPLORE 3 | . . . . . . . . . . . 1 . . . . . . . . . . . . . 2 . . . . . . . . . RETURN 13 | . . . . . . . . . . . . . . . . . . . . . 1 9 . . 1 2 . . . . . . . . Ally Attacks 1016 | . . . . . 22 62 22 83 . . 16 . 4 . . . . . . . 8 260 41 17 36 35 144 . 14 . . . 252 . Total Damage 29088 | . . . . . 313 1612 945 2048 . . 452 . 50 . . . . . . . 157 7483 1239 462 483 767 3963 . 220 . . . 8894 . Kills 159 | . . . . . 5 13 13 17 . . 3 . . . . . . . . . 1 32 8 2 5 2 19 . 1 . . . 38 . Allies Corrupted 6 | . . . . . . . . . . . . . . . . . . . . . . 2 . . . . 1 . 1 . . . 2 . Allies Melted 3 | . . . . . . 1 . . . . . . . . . . . . . . . 1 . . . . . . 1 . . . . . Intel | -11 -10 -9 -9 -8 -8 -7 -7 -7 -6 -6 -6 -6 -6 -6 -5 -5 -5 -5 -5 -4 -4 -4 -4 -4 -4 -3 -3 -3 -2 -2 -2 -1 -1 -1 ------- Run | Yrd Mat Mat Min Mat Gar Fac Gar Fac Fac Was Fac Low Low Dat Pro Fac Upp Upp Zhi Pro Fac Ext Cet Arc Hub Res Arm Lab Res Qua Sec Acc Com Ac0 Active Infowar (turns) 20471 | . . . . 390 2354 1088 380 511 356 . 314 544 183 39 308 309 154 223 126 141 233 958 . . 795 2186 1545 271 997 548 1577 1854 1891 196 Optics 11595 | . . . . . . . . . . . . . . . . . . . 71 141 128 . . . 190 2186 1545 271 997 548 1577 1854 1891 196 Sensors 6314 | . . . . . . 979 49 502 354 . 229 544 183 39 308 309 154 223 65 . . . . . . . 328 271 997 345 435 . . . IFF 872 | . . . . . . . . . . . . . . . . . . . 61 141 233 437 . . . . . . . . . . . . Terrain 584 | . . . . . . . . . . . 89 495 . . . . . . . . . . . . . . . . . . . . . . Structural 471 | . . . . . . 202 52 . 217 . . . . . . . . . . . . . . . . . . . . . . . . . Traps 195 | . . . . . . . . . 110 . 85 . . . . . . . . . . . . . . . . . . . . . . . T.N.C. 72 | . . . . . . 72 . . . . . . . . . . . . . . . . . . . . . . . . . . . . Machine Analysis 3187 | . . . . 390 2354 165 277 . . . . . . . . . . . . . . . . . . . . . . . 1 . . . Cloaking 3073 | . . . . . . . . . . . . . . . . . . . . . . 1 . . . . 479 12 627 127 487 840 500 . Spoofing 112 | . . . . . . . 103 9 . . . . . . . . . . . . . . . . . . . . . . . . . . Jamming 3918 | . . . . . . . . . . . . . . . . . . . . 62 233 949 . . 745 1639 288 . . . . . 2 . ECM 716 | . . . . . . . . . . . . 17 88 . . . . . . . . . . . . . . . . . 552 59 . . Robot Analysis Total 9 | . 1 2 . . . . . . 1 . . . . . . . . . 4 . . . . . . 1 . . . . . . . . Derelict Logs Recovered 11 | . . . . . . . . . . . . 2 2 . 1 . 1 3 . 2 . . . . . . . . . . . . . . Drone Launches 31 | . . . . . . . . . . . 2 . . . . . . . . . 2 18 . . 4 5 . . . . . . . . Drone Recoveries 25 | . . . . . . . . . . . . . . . . . . . . . 2 16 . . 4 3 . . . . . . . . Exploration | -11 -10 -9 -9 -8 -8 -7 -7 -7 -6 -6 -6 -6 -6 -6 -5 -5 -5 -5 -5 -4 -4 -4 -4 -4 -4 -3 -3 -3 -2 -2 -2 -1 -1 -1 ------------- Run | Yrd Mat Mat Min Mat Gar Fac Gar Fac Fac Was Fac Low Low Dat Pro Fac Upp Upp Zhi Pro Fac Ext Cet Arc Hub Res Arm Lab Res Qua Sec Acc Com Ac0 Turns Passed 31103 | 82 1930 2868 135 637 2354 1955 1029 1444 395 66 574 544 183 39 308 438 154 240 126 141 233 1239 567 939 1418 2186 1545 271 997 548 1577 1854 1891 196 Spaces Moved 25532 | 41 663 968 41 211 756 3272 556 2705 512 90 789 773 340 86 464 535 278 286 250 304 306 1260 432 479 613 968 1464 382 1202 794 1803 607 759 543 Core 3 | 2 . . . . . . . 1 . . . . . . . . . . . . . . . . . . . . . . . . . . Treads 4926 | 39 663 968 41 211 751 . 392 . . . . . . . . . . . . . . . . 473 534 599 . . . . . 96 159 . Legs 1010 | . . . . . . . . . . . . . . . . . . . . . . . . . . 125 18 . . . . 228 600 39 Wheels 306 | . . . . . . . . . . . . . . . . . . . . . . . . . 79 227 . . . . . . . . Hover 12980 | . . . . . . . . 500 512 90 789 773 340 86 464 535 278 286 250 304 306 1260 432 6 . 17 1446 382 1202 794 1685 243 . . Flight 5645 | . . . . . 5 3272 164 2204 . . . . . . . . . . . . . . . . . . . . . . . . . . Fastest Speed 15 | 50 160 160 240 240 240 27 28 26 15 34 22 40 45 45 45 41 41 44 35 35 35 40 42 100 120 108 21 33 21 31 33 46 118 112 Average Speed 76 | 154 231 221 240 240 241 30 121 31 33 64 43 44 45 45 45 43 46 49 40 35 38 44 59 159 155 152 43 33 41 43 45 108 134 119 Slowest Speed 560 | 160 240 480 240 240 560 311 240 250 38 102 102 45 45 45 45 101 48 50 50 35 40 94 100 160 160 260 116 33 109 114 114 225 228 122 Overloaded Moves 630 | . . . . . . . . . 9 . 16 8 . . . . . 13 . . . . . . . . 36 . 19 529 . . . . Propulsion Burnouts . | . . . . . . . . . . . . . . . . . . . . . . . . . . . . . . . . . . . Robots Hopped 22 | . . . . . . 17 . 5 . . . . . . . . . . . . . . . . . . . . . . . . . . Potential Cave-ins 1 | . . . . . . . . . . . . . . . . . . . . . . . . . . . 1 . . . . . . . Cave-ins Triggered 1 | . . 1 . . . . . . . . . . . . . . . . . . . . . . . . . . . . . . . . Teleports 4 | . . . . . . . . . . . . . . . . . . . . . . . . . 1 . . . . . 1 . 1 1 Microwarps 81 | . . . . . . . . . . . . . . . . . . . . . . . . . . . . . . . 18 6 . 57 Exploration Rate (%) 51 | 3 84 83 12 21 83 76 66 58 14 65 21 68 51 69 58 12 53 38 63 54 9 96 55 92 51 36 67 96 27 72 79 16 27 31 Regions Visited 34 Branch Regions 19 Pre-discovered Areas 9 | . 1 3 . . . . . . . . . . 1 1 . . . . 3 . . . . . . . . . . . . . . . Known Exits Taken 22 | . . 1 1 1 . 1 . 1 . . 1 1 1 1 1 1 1 1 . 1 1 1 . . 1 1 . 1 1 1 1 . . . Unknown Exits Taken 8 | 1 1 . . . . . . . . . . . . . . . . . 1 . . . 1 1 . . 1 . . . . 1 1 . Scrap Searched 13 | . . . . . . . . . . . . 3 1 . 2 . 3 2 . 2 . . . . . . . . . . . . . . Spaces Dug 495 | . . . . . 30 78 22 27 5 . 24 3 3 . 3 18 . . . 2 14 . . . 8 13 50 . 105 14 37 19 20 . Terrain Destroyed 1620 | . . . 13 . 141 79 28 65 5 . 25 6 3 . 3 51 . 1 . 2 14 18 1 8 197 169 56 . 265 133 101 57 132 47 Melee 281 | . . . . . 16 65 13 21 5 . 20 3 3 . 3 18 . . . 1 14 . . . . . 44 . . 3 28 16 8 . Projectile 304 | . . . . . . . . . . . . . . . . . . . . . . 1 1 8 35 54 6 . 108 12 6 9 54 10 AOE 1017 | . . . 13 . 125 14 15 44 . . 5 . . . . 27 . . . . . 17 . . 162 114 . . 157 118 67 32 70 37 Terrain Rammed 1 | . . . . . 1 . . . . . . . . . . . . . . . . . . . . . . . . . . . . . Walls Destroyed 1 | . . . . . 1 . . . . . . . . . . . . . . . . . . . . . . . . . . . . . Machines Disabled . | . . . . . . . . . . . . . . . . . . . . . . . . . . . . . . . . . . . Actions | -11 -10 -9 -9 -8 -8 -7 -7 -7 -6 -6 -6 -6 -6 -6 -5 -5 -5 -5 -5 -4 -4 -4 -4 -4 -4 -3 -3 -3 -2 -2 -2 -1 -1 -1 --------- Run | Yrd Mat Mat Min Mat Gar Fac Gar Fac Fac Was Fac Low Low Dat Pro Fac Upp Upp Zhi Pro Fac Ext Cet Arc Hub Res Arm Lab Res Qua Sec Acc Com Ac0 Total 33809 | 53 939 1469 79 316 1015 3957 789 3145 706 97 949 915 355 85 554 644 301 353 270 327 371 1900 745 657 1009 1358 2093 526 1504 924 2206 1597 1453 148 Wait 4033 | 1 115 185 39 43 5 241 67 190 45 6 65 93 5 . 86 15 23 48 1 13 12 361 241 66 95 103 159 116 97 43 161 812 481 . Move 24877 | 40 662 967 40 210 755 3240 555 2694 512 89 788 772 339 85 463 534 277 285 249 303 305 1259 431 478 612 967 1463 381 1201 793 1703 572 758 95 Hop 19 | . . . . . . 14 . 5 . . . . . . . . . . . . . . . . . . . . . . . . . . Pick Up 326 | 2 14 33 . 6 15 22 10 25 6 . 17 2 . . . 9 . 1 2 1 4 6 16 7 18 14 25 10 9 6 22 8 12 4 Fast Attach 347 | 5 2 7 . 3 5 19 10 25 4 1 11 5 . . . 7 . . 6 . 2 7 5 5 11 31 49 1 13 7 42 35 26 3 Attach 224 | 1 1 8 . 1 16 22 13 17 7 1 7 . . . . 4 . 1 1 1 4 5 1 1 10 12 20 3 7 3 23 13 7 14 Detach 156 | . 1 1 . . 1 16 15 16 . . 2 2 . . . 2 . . 2 . 3 3 1 2 6 5 20 2 2 2 17 12 18 5 Swap 383 | . 3 26 . 5 35 37 14 39 6 . 7 6 3 . . 11 . 4 3 1 4 11 2 4 7 34 37 2 16 15 25 11 13 2 Drop 422 | . 2 20 . 7 7 28 13 25 6 . 9 7 . . . 8 . . 4 2 5 9 20 14 11 22 55 8 17 13 46 24 35 5 Fire 1459 | 4 57 111 . 14 114 7 29 22 . . 2 25 . . . 30 . 14 . 5 9 97 28 80 237 169 98 3 142 30 15 19 81 17 Melee 799 | . 1 . . 3 24 197 54 75 20 . 41 3 8 . 5 23 1 . 2 1 23 1 . . . . 60 . . 12 136 85 22 2 Ram 2 | . . . . . 1 . . . . . . . . . . 1 . . . . . . . . . . . . . . . . . . Kick 7 | . . . . . . . . . . . . . . . . . . . . . . . . . . . . . . . . 6 . 1 Crush 10 | . 5 1 . 1 2 . . . . . . . . . . . . . . . . . . . . 1 . . . . . . . . Escape Stasis 114 | . . . . . 7 13 . . . . . . . . . . . . . . . 78 . . . . . . . . 16 . . . Rewire 170 | . . . . . . . . . . . . . . . . . . . . . . 63 . . . . 107 . . . . . . . Trap 441 | . 76 110 . 23 24 101 3 2 100 . . . . . . . . . . . . . . . 2 . . . . . . . . . Miscellaneous 20 | . . . . . 4 . 6 10 . . . . . . . . . . . . . . . . . . . . . . . . . . Route ------- -11/Scrapyard -10/Materials (discovered 4 exits: *Mat x2 / *Min / Sub) -9/Materials (discovered 4 exits: *Mat x3 / *Min) -9/Mines (discovered 2 exits: *Mat x2) -8/Materials -8/Garrison (discovered 3 exits: *Fac x3) -7/Factory (discovered 8 exits: *Fac x4 / *Sto / *Low x2 / Gar) -7/Garrison (discovered 2 exits: *Fac x2) -7/Factory (discovered 5 exits: *Fac x2 / Sto / *Low x2) -6/Factory -6/Waste -6/Factory (discovered 3 exits: *Fac / *Low x2) -6/Lower Caves -6/Lower Caves (discovered 2 exits: *Fac / *Dat) -6/Data Miner -5/Proximity Caves -5/Factory (discovered 2 exits: Fac / *Upp) -5/Upper Caves -5/Upper Caves -5/Zhirov -4/Proximity Caves -4/Factory (discovered 5 exits: Res / Upp x2 / *Ext x2) -4/Extension (discovered 3 exits: *Res x2 / *Cet) -4/Cetus (discovered 2 exits: *Res / *Arc) -4/Archives (discovered 3 exits: *Res / *Hub x2) -4/Hub_04(d) (discovered 2 exits: *Res x2) -3/Research (discovered 5 exits: *Res x2 / *Arm / *Tes x2) -3/Armory (discovered 3 exits: *Res x2 / *Lab) -3/Lab -2/Research (discovered 3 exits: *Acc / *Qua x2) -2/Quarantine (discovered 2 exits: *Sec / *Frg) -2/Section 7 -1/Access -1/Command -1/Access_0 To Fleet Rendezvous History --------- Turn | Location | Event 6 | -11/Scrapyard | Discovered new exit (range 15) 83 | -11/Scrapyard | Entered Materials 109 | -10/Materials | Discovered new exit (range 15) 302 | -10/Materials | Build established: Mutant 880 | -10/Materials | Discovered new exit (range 11) 1282 | -10/Materials | Central database locked down 1356 | -10/Materials | Learned location of Storage (-7) 1419 | -10/Materials | Learned location of 2 exits from Subcaves 1470 | -10/Materials | Loaded intel: 18 trap records 1499 | -10/Materials | Discovered new exit (range 11) 1510 | -10/Materials | Learned Storage trap positions 1540 | -10/Materials | Learned 4 Recycling zone layouts 1560 | -10/Materials | Identified exit to Mines 1570 | -10/Materials | Learned Storage trap positions 1588 | -10/Materials | Identified exit to Subcaves 1617 | -10/Materials | Learned location of 2 exits from Subcaves 1655 | -10/Materials | Learned location of 2 exits from Mines 2013 | -10/Materials | Entered another Materials area 2013 | -9/Materials | Evolved 2 slots: Propulsion x1, Utility x1 2440 | -9/Materials | Discovered new exit (range 16) 2520 | -9/Materials | Crushed by falling debris 2551 | -9/Materials | Lost 3 parts (1n1u1w) 2788 | -9/Materials | Discovered new exit (range 13) 2914 | -9/Materials | Repaired Lgt. Treads 3140 | -9/Materials | Build established: Scavenger-Mutant 3202 | -9/Materials | Identified exit to Mines 3816 | -9/Materials | Central database locked down 3897 | -9/Materials | Repaired Lgt. Treads 4065 | -9/Materials | Identified exit to Materials 4094 | -9/Materials | Learned location of 1 exit from Storage 4103 | -9/Materials | Discovered exit to Materials (range 15) 4113 | -9/Materials | Learned location of Recycling (-7) 4136 | -9/Materials | Learned 4 Recycling zone layouts 4530 | -9/Materials | Core integrity fell below 50% 4881 | -9/Materials | Entered Mines 4893 | -9/Mines | Met a Derelict bent on vengeance 5016 | -9/Mines | Entered Materials 5016 | -8/Materials | Evolved 2 slots: Utility x2 5028 | -8/Materials | Identified exit to Garrison 5190 | -8/Materials | Repaired Trap Extractor 5556 | -8/Materials | Garrison activated, responded to threat 5653 | -8/Materials | Entered Garrison 5761 | -8/Garrison | Spotted B-75 Beast 5859 | -8/Garrison | Lost 7 parts (1p4n1u1w) 5898 | -8/Garrison | Destroyed B-75 Beast 5925 | -8/Garrison | Lost 3 parts (1n1u1w) 6003 | -8/Garrison | Triggered checkpoint 6126 | -8/Garrison | Destroyed 7 combat bots 6437 | -8/Garrison | Triggered checkpoint 6554 | -8/Garrison | Discovered new exit (range 9) 6649 | -8/Garrison | Triggered checkpoint 6669 | -8/Garrison | Rescued a captive Derelict 6670 | -8/Garrison | Rescued a captive Derelict 6671 | -8/Garrison | Core integrity fell below 50% 6718 | -8/Garrison | Garrison Relay disabled 7135 | -8/Garrison | Triggered checkpoint 7165 | -8/Garrison | Triggered checkpoint 7355 | -8/Garrison | Triggered checkpoint 7426 | -8/Garrison | Discovered new exit (range 8) 7717 | -8/Garrison | Discovered new exit (range 15) 7843 | -8/Garrison | Triggered checkpoint 7885 | -8/Garrison | Installed Relay Interface Framework 7930 | -8/Garrison | Garrison Relay disabled 8007 | -8/Garrison | Entered Factory 8007 | -7/Factory | Accompanied by 1 ally 8007 | -7/Factory | Evolved 2 slots: Propulsion x1, Utility x1 8054 | -7/Factory | Discovered new exit (range 9) 8185 | -7/Factory | Discovered new exit (range 12) 8292 | -7/Factory | Build established: Bothacker-Sprinter 8486 | -7/Factory | Fabricated Imp. Flight Unit (x1) 8510 | -7/Factory | Discovered new exit (range 16) 8709 | -7/Factory | Discovered new exit (range 8) 8711 | -7/Factory | Identified exit to Lower Caves 8827 | -7/Factory | Build established: Sprinter 9106 | -7/Factory | Discovered new exit (range 15) 9110 | -7/Factory | Identified exit to Factory 9258 | -7/Factory | Discovered exit to Lower Caves (range 11) 9368 | -7/Factory | Build established: Hacker-Sprinter 9422 | -7/Factory | Hacking Suite fried by hacking feedback 9607 | -7/Factory | First assault squad dispatched 9803 | -7/Factory | Learned Extension stockpile data 9811 | -7/Factory | Repaired Cesium-ion Thruster+ 9827 | -7/Factory | Fabricated Y-54 Guardian (x2) 9841 | -7/Factory | Lost 3 parts (3u) 9847 | -7/Factory | Garrison activated, responded to threat 9874 | -7/Factory | Garrison activated, responded to threat 9958 | -7/Factory | Identified exit to Garrison 9962 | -7/Factory | Entered Garrison 9998 | -7/Garrison | Core integrity fell below 50% 10048 | -7/Garrison | Triggered checkpoint 10111 | -7/Garrison | Garrison Relay disabled 10230 | -7/Garrison | Found embedded Infiltrators 10326 | -7/Garrison | Triggered checkpoint 10392 | -7/Garrison | Triggered checkpoint 10431 | -7/Garrison | Garrison Relay disabled 10449 | -7/Garrison | Garrison Relay disabled 10504 | -7/Garrison | Discovered new exit (range 12) 10523 | -7/Garrison | Identified exit to Factory 10628 | -7/Garrison | Triggered checkpoint 10675 | -7/Garrison | System corruption reached 10% 10768 | -7/Garrison | Triggered checkpoint 10807 | -7/Garrison | Expanded RIF knowledge: Signal Jamming 10813 | -7/Garrison | Build established: Scavenger-Mutant 10887 | -7/Garrison | Garrison Relay disabled 10915 | -7/Garrison | Discovered exit to Factory (range 8) 10991 | -7/Garrison | Entered Factory 11290 | -7/Factory | Fabricated Y-54 Guardian (x2) 11298 | -7/Factory | Fabricated Cld. VTOL Module (x1) 11347 | -7/Factory | Discovered exit to Factory (range 15) 11383 | -7/Factory | Repaired Cesium-ion Thruster+ 11453 | -7/Factory | Repaired Cld. VTOL Module 11605 | -7/Factory | Discovered exit to Lower Caves (range 15) 11849 | -7/Factory | Discovered exit to Lower Caves (range 10) 12017 | -7/Factory | Build established: Hacker-Sprinter 12091 | -7/Factory | Core integrity fell below 20% 12146 | -7/Factory | Fabricated Y-54 Guardian (x2) 12206 | -7/Factory | Lost 3 allies 12213 | -7/Factory | Central database locked down 12287 | -7/Factory | Repaired Scythe 12296 | -7/Factory | Identified exit to Storage 12300 | -7/Factory | Discovered exit to Factory (range 8) 12406 | -7/Factory | Lost 4 allies 12432 | -7/Factory | Build established: Mutant 12435 | -7/Factory | Entered another Factory area 12435 | -6/Factory | Evolved 2 slots: Propulsion x1, Utility x1 12449 | -6/Factory | Identified exit to DSF 12595 | -6/Factory | Unchained authorized (6S-H0T) 12784 | -6/Factory | Build established: Hacker-Scout 12830 | -6/Factory | Sucked down chute 12830 | -6/Factory | Entered Waste 12834 | -6/Waste | Spotted C-40 Crusher 12845 | -6/Waste | EMP discharged 12850 | -6/Waste | Spotted C-40 Crusher 12851 | -6/Waste | Lost 9 parts (2p2n4u1w) 12857 | -6/Waste | Spotted C-40 Crusher 12859 | -6/Waste | Spotted C-40 Crusher 12866 | -6/Waste | Spotted C-40 Crusher 12880 | -6/Waste | Discovered new exit (range 16) 12896 | -6/Waste | Entered Factory 12958 | -6/Factory | Discovered new exit (range 5) 13101 | -6/Factory | Fabricated Y-54 Guardian? 13111 | -6/Factory | Unchained authorized (6S-H0T) 13129 | -6/Factory | Identified exit to Lower Caves 13160 | -6/Factory | Local machine network offline 13347 | -6/Factory | Lost 5 parts (4n1u) 13470 | -6/Factory | Entered Lower Caves 13478 | -6/Lower Caves | Learned 8 Factory zone layouts 13652 | -6/Lower Caves | Build established: Scout 13800 | -6/Lower Caves | Identified exit to Lower Caves 13945 | -6/Lower Caves | Encountered a Warlord checkpoint 14014 | -6/Lower Caves | Entered another Lower Caves area 14034 | -6/Lower Caves | Discovered new exit (range 15) 14170 | -6/Lower Caves | Learned location of 1 exit from Proximity Caves 14195 | -6/Lower Caves | Discovered new exit (range 4) 14196 | -6/Lower Caves | Identified exit to Data Miner 14197 | -6/Lower Caves | Entered Data Miner 14197 | -6/Data Miner | Discovered new exit (range 7) 14206 | -6/Data Miner | Met Data Miner 14215 | -6/Data Miner | Learned location of Section 7 (-2) 14215 | -6/Data Miner | Acquired the access code to Warlord's prototype stash 14222 | -6/Data Miner | Received God Mode back door access code from Data Miner 14233 | -6/Data Miner | Identified exit to Proximity Caves 14236 | -6/Data Miner | Entered Proximity Caves 14237 | -5/Proximity Caves | Identified exit to Factory 14244 | -5/Proximity Caves | Learned Factory stockpile data 14309 | -5/Proximity Caves | Build established: Mutant 14544 | -5/Proximity Caves | Entered Factory 14544 | -5/Factory | Evolved 2 slots: Propulsion x1, Weapon x1 14749 | -5/Factory | Unchained authorized (6S-H0T) 14818 | -5/Factory | Fabricated Lgt. Regenerative Plating? 14870 | -5/Factory | Lost 3 parts (2n1u) 14957 | -5/Factory | Discovered new exit (range 17) 14957 | -5/Factory | Discovered new exit (range 39) 14980 | -5/Factory | Identified exit to Upper Caves 14982 | -5/Factory | Entered Upper Caves 14997 | -5/Upper Caves | Learned location of 2 exits from Factory 15133 | -5/Upper Caves | Discovered new exit (range 5) 15136 | -5/Upper Caves | Identified exit to Upper Caves 15136 | -5/Upper Caves | Entered another Upper Caves area 15159 | -5/Upper Caves | Build established: Scavenger-Mutant 15190 | -5/Upper Caves | Lost 3 parts (2n1w) 15303 | -5/Upper Caves | Learned location of 1 exit from Factory 15315 | -5/Upper Caves | Discovered new exit (range 10) 15345 | -5/Upper Caves | Learned Factory terminal intel 15375 | -5/Upper Caves | Identified exit to Zhirov 15376 | -5/Upper Caves | Entered Zhirov 15376 | -5/Zhirov | Discovered new exit (range 3) 15386 | -5/Zhirov | Met Zhirov 15395 | -5/Zhirov | Learned location of Quarantine (-2) 15395 | -5/Zhirov | Learned location of Testing (-3) 15395 | -5/Zhirov | Learned location of Command (-1) 15402 | -5/Zhirov | Zhirov requested help retrieving the SGEMP Prototype 15414 | -5/Zhirov | Found Alien Artifact 15414 | -5/Zhirov | Identified Integrated Reactor 15414 | -5/Zhirov | Installed Integrated Reactor, increased core energy generation (+10) 15455 | -5/Zhirov | Found Alien Artifact 15502 | -5/Zhirov | Entered Proximity Caves 15505 | -4/Proximity Caves | Spotter reported a threat 15566 | -4/Proximity Caves | Identified exit to Factory 15593 | -4/Proximity Caves | Learned Research emergency access door positions 15640 | -4/Proximity Caves | Learned Armory security intel 15643 | -4/Proximity Caves | Entered Factory 15643 | -4/Factory | Evolved 2 slots: Utility x2 15644 | -4/Factory | Identified exit to Upper Caves 15645 | -4/Factory | Identified exit to Extension 15645 | -4/Factory | Identified exit to Research 15646 | -4/Factory | Loaded intel: 28 terminal locations 15677 | -4/Factory | Incoming investigation squad redirected 15741 | -4/Factory | Fabricated Assault Drone Bay (x1) 15776 | -4/Factory | Found Quantum Capacitor 15810 | -4/Factory | Spotted B-86 Titan 15876 | -4/Factory | Entered Extension 15897 | -4/Extension | Rescued A7 15956 | -4/Extension | Build established: Hacker-Mutant 16036 | -4/Extension | Rescued a captive Derelict 16052 | -4/Extension | Rescued a captive Derelict 16063 | -4/Extension | Rescued a captive Derelict 16063 | -4/Extension | Rescued a captive Derelict 16306 | -4/Extension | Spotted B-86 Titan 16327 | -4/Extension | P-70 Sage assimilated allied JA-QWQ(g) 16333 | -4/Extension | Allies destroyed B-86 Titan 16335 | -4/Extension | Spotted B-86 Titan 16346 | -4/Extension | Allies destroyed B-86 Titan 16380 | -4/Extension | Build established: Commander-Mutant 16514 | -4/Extension | Rescued a captive Derelict 16515 | -4/Extension | Rescued a captive Derelict 16582 | -4/Extension | Learned location of 2 exits from Proximity Caves 16632 | -4/Extension | Rescued a captive Derelict 16633 | -4/Extension | Rescued a captive Derelict 16637 | -4/Extension | Rescued a captive Derelict 16638 | -4/Extension | Rescued a captive Derelict 16653 | -4/Extension | Learned location of 1 exit from Research 16712 | -4/Extension | Identified exit to Cetus 16794 | -4/Extension | Learned Factory security intel 16836 | -4/Extension | Learned Factory security intel 16864 | -4/Extension | Learned Quarantine trap positions 16876 | -4/Extension | First assault squad dispatched 16888 | -4/Extension | Disrupted transfer network 16896 | -4/Extension | Allies destroyed A7 16897 | -4/Extension | Incoming assault squad redirected 16901 | -4/Extension | P-70 Sage assimilated allied 96-JYM(g) 16902 | -4/Extension | Learned location of 1 exit from Proximity Caves 16925 | -4/Extension | P-70 Sage assimilated allied 28-CP6(h) 16940 | -4/Extension | Extracted ID and sensor layout for unrecognized location from A7's data core 16943 | -4/Extension | Lost 4 parts (1p2u1w) 16948 | -4/Extension | Learned 8 Research zone layouts 16961 | -4/Extension | Found Hvy. Reflective Plating 16981 | -4/Extension | Lost 12 allies 17003 | -4/Extension | Learned Factory security intel 17115 | -4/Extension | Entered Cetus 17115 | -4/Cetus | Accompanied by 12 allies 17130 | -4/Cetus | Spotted Cetus Guard 17130 | -4/Cetus | Spotted Cetus Guard 17136 | -4/Cetus | Spotted Cetus Guard 17137 | -4/Cetus | Allies destroyed Cetus Guard 17138 | -4/Cetus | Spotted Cetus Guard 17144 | -4/Cetus | Allies destroyed Cetus Guard 17152 | -4/Cetus | Allies destroyed Cetus Guard 17154 | -4/Cetus | Destroyed Cetus Guard 17282 | -4/Cetus | Discovered new exit (range 16) 17373 | -4/Cetus | Spotted Cetus Guard 17373 | -4/Cetus | Spotted Cetus Guard 17385 | -4/Cetus | Spotted Cetus Guard 17386 | -4/Cetus | Spotted Cetus Guard 17392 | -4/Cetus | Allies destroyed Cetus Guard 17400 | -4/Cetus | Allies destroyed Cetus Guard 17402 | -4/Cetus | Destroyed Cetus Guard 17403 | -4/Cetus | Allies destroyed Cetus Guard 17407 | -4/Cetus | Discovered exit to Research (range 15) 17409 | -4/Cetus | Met Revision 17 17425 | -4/Cetus | Lost 4 allies 17682 | -4/Cetus | Entered Archives 17682 | -4/Archives | Accompanied by 7 allies 17742 | -4/Archives | Build established: Scavenger-Tank 17746 | -4/Archives | Unable to access archive contents 17811 | -4/Archives | Discovered new exit (range 16) 17844 | -4/Archives | Discovered new exit (range 16) 17880 | -4/Archives | Discovered exit to Research (range 16) 18621 | -4/Archives | Entered Hub_04(d) 18621 | -4/Hub_04(d) | Accompanied by 6 allies 18741 | -4/Hub_04(d) | Lost 3 allies 18808 | -4/Hub_04(d) | Discovered exit to Research (range 12) 18866 | -4/Hub_04(d) | Spotted B-86 Titan 18889 | -4/Hub_04(d) | Destroyed B-86 Titan 18945 | -4/Hub_04(d) | Network Hub disabled 18957 | -4/Hub_04(d) | Spotted Lightning 18960 | -4/Hub_04(d) | Spotted Lightning 18962 | -4/Hub_04(d) | Spotted Lightning 18987 | -4/Hub_04(d) | System corruption reached 10% 19009 | -4/Hub_04(d) | Destroyed Lightning 19043 | -4/Hub_04(d) | Destroyed Lightning 19079 | -4/Hub_04(d) | Found Prototype Processor 19079 | -4/Hub_04(d) | Identified Exp. Melee Analysis Suite 19083 | -4/Hub_04(d) | Found Prototype Device 19083 | -4/Hub_04(d) | Identified Exp. Phase Shifter 19092 | -4/Hub_04(d) | Found Exp. Phase Shifter 19273 | -4/Hub_04(d) | Build established: Scavenger-Mutant 19285 | -4/Hub_04(d) | Destroyed Lightning 19374 | -4/Hub_04(d) | Discovered exit to Research (range 14) 19507 | -4/Hub_04(d) | Spotted Lightning 19507 | -4/Hub_04(d) | Spotted Lightning 19507 | -4/Hub_04(d) | Spotted Lightning 19517 | -4/Hub_04(d) | Identified Transdimensional Reconstructor 19517 | -4/Hub_04(d) | Warped through subspace 19546 | -4/Hub_04(d) | Incoming assault squad redirected 19770 | -4/Hub_04(d) | Spotted Lightning 19774 | -4/Hub_04(d) | Spotted Lightning 19777 | -4/Hub_04(d) | Spotted Lightning 19798 | -4/Hub_04(d) | System corruption reached 30% 19805 | -4/Hub_04(d) | Destroyed Lightning 19811 | -4/Hub_04(d) | Destroyed Lightning 19835 | -4/Hub_04(d) | Lost 4 parts (1p3u) 19844 | -4/Hub_04(d) | Destroyed Lightning 19867 | -4/Hub_04(d) | Found Prototype Energy Cannon 19873 | -4/Hub_04(d) | Found Prototype Energy Cannon 19876 | -4/Hub_04(d) | Found Prototype Device 19877 | -4/Hub_04(d) | Identified Exp. EM Shield 19911 | -4/Hub_04(d) | Network Hub disabled 19914 | -4/Hub_04(d) | Network Hub disabled 19933 | -4/Hub_04(d) | Network Hub disabled 19939 | -4/Hub_04(d) | Incoming investigation squad redirected 20039 | -4/Hub_04(d) | Entered Research 20039 | -3/Research | Evolved 2 slots: Power x1, Propulsion x1 20040 | -3/Research | Identified exit to Armory 20041 | -3/Research | Identified exit to Testing 20042 | -3/Research | Identified exit to Research 20072 | -3/Research | Discovered exit to Research (range 23) 20164 | -3/Research | Fabricated Assault Drone Bay? 20211 | -3/Research | Identified EMDS (x2) 20239 | -3/Research | Revision forces began assault on 0b10 20261 | -3/Research | Met up with Revision 17++ 20333 | -3/Research | Build established: Scavenger-Tank 20408 | -3/Research | Found Gamma Bomb Array 20654 | -3/Research | Lost 4 allies 20739 | -3/Research | Research terminal network offline 20844 | -3/Research | Spotted Striker 20846 | -3/Research | Build established: Scavenger-Mutant 20899 | -3/Research | Lost 5 allies 20998 | -3/Research | Spotted Striker 21002 | -3/Research | Spotted Striker 21025 | -3/Research | Spotted Striker 21028 | -3/Research | Spotted Striker 21044 | -3/Research | Destroyed Striker 21052 | -3/Research | Destroyed Striker 21077 | -3/Research | Lost 3 allies 21132 | -3/Research | Spotted Executioner 21132 | -3/Research | Spotted Striker 21139 | -3/Research | Destroyed Striker 21139 | -3/Research | Destroyed Executioner 21170 | -3/Research | Destroyed Striker 21236 | -3/Research | Discovered exit to Testing (range 8) 21276 | -3/Research | Spotted Striker 21292 | -3/Research | Destroyed Striker 21406 | -3/Research | Build established: Scavenger-Tank 21427 | -3/Research | Spotted Striker 21435 | -3/Research | Lost 4 allies 21472 | -3/Research | Spotted Striker 21518 | -3/Research | Destroyed Striker 21595 | -3/Research | Spotted Striker 21612 | -3/Research | Destroyed Striker 21636 | -3/Research | Spotted Striker 21639 | -3/Research | Spotted Striker 21653 | -3/Research | Destroyed Striker 21668 | -3/Research | Destroyed Striker 21792 | -3/Research | Spotted Striker 21847 | -3/Research | Spotted Executioner 21850 | -3/Research | Spotted Striker 21867 | -3/Research | Spotted Striker 21871 | -3/Research | Lost 7 allies 21951 | -3/Research | Lost 9 parts (1p2n4u2w) 21965 | -3/Research | Lost 3 allies 22180 | -3/Research | Spotted Striker 22209 | -3/Research | Spotted Executioner 22225 | -3/Research | Entered Armory 22275 | -3/Armory | Found Prototype Device 22275 | -3/Armory | Identified Adv. EM Shield 22283 | -3/Armory | Found Prototype Processor 22283 | -3/Armory | Identified Spectral Analyzer 22296 | -3/Armory | Found Prototype Device 22296 | -3/Armory | Identified Adv. Kinecellerator 22428 | -3/Armory | Lost 3 parts (1n2u) 22623 | -3/Armory | Assisted by bots powering up and referring to "LRC-V3" 22867 | -3/Armory | Incoming investigation squad redirected 22900 | -3/Armory | Build established: Commander-Mutant 22925 | -3/Armory | Fabricated Cld. Gravmag System (x1) 23221 | -3/Armory | Lost 4 allies 23225 | -3/Armory | First assault squad dispatched 23259 | -3/Armory | Fabricated Lgt. Regenerative Plating (x1) 23275 | -3/Armory | Discovered exit to Research (range 3) 23287 | -3/Armory | Lost 3 allies 23339 | -3/Armory | Incoming assault squad redirected 23374 | -3/Armory | Lost 5 allies 23432 | -3/Armory | Found Prototype Device 23432 | -3/Armory | Identified Exp. Sensor Array 23442 | -3/Armory | Core integrity fell below 50% 23505 | -3/Armory | Found Exp. Targeting Computer 23528 | -3/Armory | Found Prototype Device 23528 | -3/Armory | Identified System Purifier 23541 | -3/Armory | Found Prototype Launcher 23541 | -3/Armory | Identified Tactical Quantum Warhead 23756 | -3/Armory | Discovered exit to Research (range 10) 23762 | -3/Armory | Discovered new exit (range 7) 23770 | -3/Armory | Entered Lab 23770 | -3/Lab | Accompanied by 2 allies 23770 | -3/Lab | Discovered exit to Research (range 9) 23788 | -3/Lab | Hidden lab's door opened automatically 23788 | -3/Lab | Sensor layout match revealed 23789 | -3/Lab | Gained access to the hidden lab's interior 23877 | -3/Lab | Found Integrated Reactor 23877 | -3/Lab | Installed Integrated Reactor, increased core energy generation (+10) 23883 | -3/Lab | Found Transdimensional Reconstructor 23887 | -3/Lab | Found Alien Artifact 23898 | -3/Lab | Build established: Scavenger-Sprinter 23935 | -3/Lab | Found Alien Artifact 23956 | -3/Lab | Found Prototype Hackware 23956 | -3/Lab | Identified Quantum Router 23958 | -3/Lab | Found Prototype Protection 23959 | -3/Lab | Found Prototype Energy Cannon 23977 | -3/Lab | Unable to decrypt terminal 23987 | -3/Lab | Identified Core Expander 23987 | -3/Lab | Installed Core Expander, added new Power slot 23989 | -3/Lab | Found Prototype Special Weapon 23992 | -3/Lab | Identified Exp. Powered Armor 23997 | -3/Lab | Found Prototype Energy Cannon 24041 | -3/Lab | Entered Research 24041 | -2/Research | Accompanied by 2 allies 24041 | -2/Research | Evolved 2 slots: Propulsion x1, Utility x1 24112 | -2/Research | Identified exit to Quarantine 24119 | -2/Research | Identified Potential Cannon (x2) 24519 | -2/Research | Destroyed 7 combat bots 24722 | -2/Research | Garrison activated, responded to threat 24737 | -2/Research | Unchained authorized (QV-33N) 24894 | -2/Research | Discovered new exit (range 23) 24933 | -2/Research | Identified Gui. Remote Datajack 25028 | -2/Research | Spotted B-90 Cyclops 25038 | -2/Research | Entered Quarantine 25039 | -2/Quarantine | Loaded intel: 9 trap records 25073 | -2/Quarantine | Found Alien Artifact 25078 | -2/Quarantine | Found Alien Artifact 25197 | -2/Quarantine | Cryocooling Duct disabled 25205 | -2/Quarantine | Central database locked down 25212 | -2/Quarantine | Ambient heat levels rising (+20) 25212 | -2/Quarantine | Non-combat units ordered to evacuate 25219 | -2/Quarantine | Found Alien Slashing Weapon 25219 | -2/Quarantine | Identified Sigix Broadsword 25287 | -2/Quarantine | Found Alien Reactor 25287 | -2/Quarantine | Identified Matter Drive 25374 | -2/Quarantine | Found Alien Artifact 25400 | -2/Quarantine | Spotted Fortress 25431 | -2/Quarantine | Discovered new exit (range 6) 25431 | -2/Quarantine | Discovered new exit (range 7) 25434 | -2/Quarantine | Identified exit to Section 7 25467 | -2/Quarantine | Identified exit to Protoforge 25536 | -2/Quarantine | Destroyed 7 combat bots 25586 | -2/Quarantine | Entered Section 7 25741 | -2/Section 7 | Identified Core Reset Matrix 25741 | -2/Section 7 | Identified Subatomic Replicator 25741 | -2/Section 7 | Identified Terrabomb 25741 | -2/Section 7 | Used Core Reset Matrix 25744 | -2/Section 7 | Found Microwarp Drive 25745 | -2/Section 7 | Detected hypermatrix surge 25745 | -2/Section 7 | Sensed 23 artifacts in vicinity 25836 | -2/Section 7 | First assault squad dispatched 26028 | -2/Section 7 | Spotted S7 Guard 26052 | -2/Section 7 | Identified exit to Access 26109 | -2/Section 7 | Found Prototype Device 26109 | -2/Section 7 | Identified Exp. EM Disruption Field 26118 | -2/Section 7 | Found Integrated Dissipator 26118 | -2/Section 7 | Installed Integrated Dissipator, increased core heat dissipation (+20) 26209 | -2/Section 7 | Lost 3 parts (1n2u) 26221 | -2/Section 7 | Found Integrated Reactor 26221 | -2/Section 7 | Installed Integrated Reactor, increased core energy generation (+10) 26226 | -2/Section 7 | Spotted Alpha 7 26235 | -2/Section 7 | Incoming assault squad redirected 26289 | -2/Section 7 | Lost 3 parts (1p1n1u) 26301 | -2/Section 7 | Spotted Alpha 7 26331 | -2/Section 7 | Spotted S7 Guard 26361 | -2/Section 7 | Destroyed S7 Guard 26393 | -2/Section 7 | System corruption reached 10% 26400 | -2/Section 7 | Found Prototype Protection 26400 | -2/Section 7 | Identified Hvy. Regenerative Plating 26423 | -2/Section 7 | Lost 3 parts (1n2u) 26493 | -2/Section 7 | Build established: Alien-Gladiator 26550 | -2/Section 7 | Found Integrated Thermoelectric Network 26550 | -2/Section 7 | Installed Integrated Thermoelectric Network, gained heat-energy exchange potential 26611 | -2/Section 7 | Found Prototype Launcher 26611 | -2/Section 7 | Identified Ragnarok Missile Launcher 26628 | -2/Section 7 | Spotted Executioner 26628 | -2/Section 7 | Spotted Executioner 26644 | -2/Section 7 | Spotted B-99 Colossus 26667 | -2/Section 7 | Found Integrity Redistributor 26683 | -2/Section 7 | Found LRC Insulator 26683 | -2/Section 7 | Installed LRC Insulator, 1 resistance modified: EM +25% 26724 | -2/Section 7 | Found Integrated Reactor 26724 | -2/Section 7 | Installed Integrated Reactor, increased core energy generation (+10) 26847 | -2/Section 7 | Spotted Striker 26848 | -2/Section 7 | Spotted Striker 26932 | -2/Section 7 | Found Sigix Sheargun 26935 | -2/Section 7 | Found Sigix Sheargun 26944 | -2/Section 7 | Used Integrity Redistributor, redistributed integrity from core (-161) 27005 | -2/Section 7 | Used Terrabomb 27008 | -2/Section 7 | Found Transdimensional Reconstructor 27013 | -2/Section 7 | Found Terrabomb 27020 | -2/Section 7 | Found Matter Drive 27065 | -2/Section 7 | Core integrity fell below 50% 27078 | -2/Section 7 | Spotted S7 Guard 27086 | -2/Section 7 | Found Core Membrane 27086 | -2/Section 7 | Installed Core Membrane, gained immunity to corruption 27092 | -2/Section 7 | Warped through subspace 27132 | -2/Section 7 | Spotted B-90 Cyclops 27136 | -2/Section 7 | Spotted S7 Guard 27142 | -2/Section 7 | Found Core Regenerator 27157 | -2/Section 7 | Core integrity fell below 20% 27163 | -2/Section 7 | Entered Access 27163 | -1/Access | Evolved 2 slots: Utility x1, Weapon x1 27663 | -1/Access | First assault squad dispatched 27679 | -1/Access | Incoming assault squad redirected 27690 | -1/Access | Incoming assault squad redirected 28103 | -1/Access | Discovered new exit (range 7) 28386 | -1/Access | Unchained authorized (GL-D0S) 29017 | -1/Access | Entered Command 29475 | -1/Command | Found Prototype Launcher 29475 | -1/Command | Identified Tactical Quantum Warhead 29517 | -1/Command | First assault squad dispatched 29541 | -1/Command | Disengaged cave seal 29541 | -1/Command | Assembled emerged from the dark tunnel 29654 | -1/Command | Lost 4 allies 29697 | -1/Command | Phase Generator disabled 29832 | -1/Command | Lost 4 allies 29935 | -1/Command | Lost 7 allies 29946 | -1/Command | Destroyed AG-02264 29960 | -1/Command | Found Unknown Device 29960 | -1/Command | Identified GOLEM Unit 30050 | -1/Command | Repaired Coolant Network 30133 | -1/Command | High security lockdown imminent 30191 | -1/Command | Lost 5 allies 30213 | -1/Command | High security lockdown engaged 30386 | -1/Command | Spotted Striker 30387 | -1/Command | Spotted Executioner 30388 | -1/Command | Used Subatomic Replicator to create Supercharged TR 30392 | -1/Command | Warped through subspace to slip node 30392 | -1/Command | Discovered new exit (range 4) 30396 | -1/Command | Destroyed Executioner 30406 | -1/Command | Destroyed Striker 30873 | -1/Command | Used Core Regenerator, restored core integrity (+400) 30908 | -1/Command | Entered Access_0 30909 | -1/Access_0 | Sensed 2 artifacts in vicinity 30909 | -1/Access_0 | Met Architect 30939 | -1/Access_0 | Found Prototype Device 30952 | -1/Access_0 | A6 warped into view 30966 | -1/Access_0 | Found Hpw. Transdimensional Reconstructor 30977 | -1/Access_0 | Architect warped through subspace 31015 | -1/Access_0 | Core integrity fell below 50% 31073 | -1/Access_0 | Core integrity fell below 20% 31076 | -1/Access_0 | A5 warped into view 31086 | -1/Access_0 | Identified Adv. EM Shield 31097 | -1/Access_0 | Warped through subspace to slip node 31097 | -1/Access_0 | Discovered new exit (range 8) 31104 | *** | Heading to fleet! Last Messages --------------- 31090_ Penetrated by Quantum Shear. 31090_ Quantum Shear penetrates Wall. 31091_ Extracted 350 energy. 31091_ A6 follow-up attacks with Unknown Piercing Weapon. 31092_ Penetrated by Quantum Shear. 31093_ Quantum Shear penetrates Architect. 31094_ A6 follow-up attacks with Unknown Piercing Weapon. 31094_ Critical hit (Impale). 31095_ Adv. EM Shield destroyed. 31095_ Penetrated by Quantum Shear. 31095_ Myomer Leg destroyed. 31095_ Penetrated by Quantum Shear. 31097_ Warped through subspace, drawn to slip node. 31097_ EXIT=FOUND 31097_ A0_RES: I have more important things to do than play hide-and-seek. Deal with this piece of junk if it returns. Map ----- +----------------------------------------------------+ | | | | | | | | | | | | | | | | | | | | | | | | | | | | | | | | | ?????????????????????????????????????????????????? | | ?????????????????????????????????????????????????? | | ?????????????????????????????????????????????????? | | ?????????????????????????????????????????????????? | | ?????????????????????????????????????????????????? | | ?????????????????????????????????????????????????? | | ????????????????????????###??????????????????????? | | ???????????????????????## ##?????????????????????? | | ???????????????????????# #?????????????????????? | | ???????????????????????# @ #?????????????????????? | | ??????????????????????## #?????????????????????? | | ??????????????????????# #?????????????????????? | | ??????????????????????# ##?????????????????????? | | ??????????????????????## #?????????????????????? | | ??????????????????????# #?????????????????????? | | ??????????????????????# ##?????????????????????? | | ??????????????????????# ! #?????????????????????? | | ??????????????????????# ##?????????????????????? | | ??????????????????????## #??????????????????????? | | ???????????????????????####??????????????????????? | | ?????????????????????????????????????????????????? | | ?????????????????????????????????????????????????? | | ?????????????????????????????????????????????????? | | ?????????????????????????????????????????????????? | | ?????????????????????????????????????????????????? | | ?????????????????????????????????????????????????? | | ?????????????????????????????????????????????????? | | ?????????????????????????????????????????????????? | | ?????????????????????????????????????????????????? | | ?????????????????????????????????????????????????? | | ?????????????????????????????????????????????????? | | ?????????????????????????????????????????????????? | | ?????????????????????????????????????????????????? | | ?????????????????????????????????????????????????? | +----------------------------------------------------+ Best States ------------- Heat Dissipation 200 Coolant Potential 80 Energy Generation 123 Energy Capacity 1190 Matter Stores 300 Matter Capacity 300 Sight Range 24 Robot Scan Range 20 Terrain Scan Range 16 Terrain Scan Density 210 ECM Strength 2 Jamming Range 16 Cloak Strength 6 Power Amplification 40 Additional Mass Support 20 EM Shielding 4 Corruption Containment 8 Corruption Block 20 Armor Coverage 1200 Resistance: KI 30 Resistance: TH 25 Resistance: EX 50 Resistance: EM 75 Resistance: I 15 Resistance: S 15 Resistance: P 15 Core Shielding 30 Power Shielding 66 Propulsion Shielding 66 Utility Shielding 66 Weapon Shielding 33 Phase Shifting 20 Evasion (%) 83 Targeting Accuracy 12 Melee Accuracy 22 Target Analysis 9 Core Analysis 8 Recoil Reduction 6 Energy Filtering 30 Kinecelleration 50 Salvage Targeting 4 Offensive Hacking 26 Defensive Hacking 25 Relay Coupler Types 3 Relay Coupler Value 85 Authchip Count 2 Trap Extractor Capacity 6 Item Schematics ----------------- None Robot Schematics ------------------ None Fabricated ------------ Imp. Flight Unit | x1 | -7/Factory Y-54 Guardian | x2 | -7/Factory Y-54 Guardian | x2 | -7/Factory | Authchip Cld. VTOL Module | x1 | -7/Factory Y-54 Guardian | x2 | -7/Factory Y-54 Guardian | x2 | -6/Factory Lgt. Regenerative Plating | x1 | -5/Factory Assault Drone Bay | x1 | -4/Factory Assault Drone Bay | x1 | -3/Research Cld. Gravmag System | x1 | -3/Armory Lgt. Regenerative Plating | x1 | -3/Armory Repaired ---------- Lgt. Treads | 22% | -9/Materials Lgt. Treads | 15% | -9/Materials Trap Extractor | 37% | -8/Materials Cesium-ion Thruster | 28% | -7/Factory Cesium-ion Thruster | 12% | -7/Factory Cld. VTOL Module | 31% | -7/Factory Scythe | 8% | -7/Factory Coolant Network | 15% | -1/Command Studied --------- Imp. Linear Gravjet | -2/Section 7 | Hacked Antigrav System | -2/Section 7 | Hacked Antigrav Array | -2/Section 7 | Hacked Alien Tech Used ----------------- Integrated Reactor Transdimensional Reconstructor Core Expander Sigix Broadsword Matter Drive Core Reset Matrix Integrated Dissipator Integrated Thermoelectric Network LRC Insulator Sigix Sheargun Integrity Redistributor Terrabomb Microwarp Drive Core Membrane Subatomic Replicator Supercharged TR Core Regenerator High-powered Transdimensional Reconstructor Achievements -------------- All Kinds Of Bad News Deadly Precision Express Service Fancy Inventory Hammer Time Hehehe Into The Breach Junior Dev Look Less Dangerous Next Time May I Have Another? Metal Spider Minesweeper Official Business Plot Armor Recruitment Drive Resistances Are Futile That Tickles The Better Part Of Valor Thread The Needle Around The Corner Tune-up Challenges ------------ None Game ------ Seed MyomerNuclearDirector Manual? 0 Play Time 11:39:53 Cumulative 328.9 hours Start 2025.10.23 @ 21:36:41 End 2025.10.25 @ 05:48:13 Sessions 5 Manual Loads 0 Difficulty Rogue Special Mode None Game No. 167 Rogue 159 Adventurer 8 Explorer 0 Win Type 2 Total 21 Types 12/0/4/2/0/0/1/0/1/1 Lore% 88 Gallery% 87 Achievement% 60 Wizard Run 0 Options --------- Layout 2 ASCII 0 Keyboard 1 Movement Numpad Keybinds 1 Fullscreen 1 Font 24/Smallcaps Map View 50x44 Zoom Use 0% Tactical HUD 1 Map Filters SATURATION(78)|BRIGHTNESS(125) Filters SHIFT_HUE(220) Steam 1 RUN: 7619a6a2-115f-4dfb-9833-b63866c5e647